Workbook

Sheet 1 رمضان 39هـ
A1: اسم المحصل | C1: اليوم | H1: اليوم والتاريخ
G2: 2018-05-17
H3: 39/09/01
A4: م | B4: المبلغ | C4: رقم السند | D4: تاريخ السند | E4: المحصل | F4: الوحدة | G4: العمارة/ المستودع | H4: ملاحظات | J4: المبلغ | K4: البيان
A5: 1 | B5: 950 | C5: 4146 | D5: 39/08/30 | E5: فضل | F5: 6 | G5: المظلوم | H5: شهر 8 لعام1439هـ المتبقي 50ريال من شهر 7 | J5: 2834
A6: 3 | B6: 600 | C6: 4147 | D6: 39/09/01 | E6: فضل | F6: ع2ش7 ـ غرفة | G6: شبك المطار | H6: شهر 8 لعام1439هـ | J6: 57150
A7: 3 | B7: 2834 | C7: 4148 | D7: 39/09/01 | E7: فضل | F7: 26 | G7: الربوة | H7: شهر 6+7 لعام39هـ ـ تحويل في 201/05/15 | J7: 2000
A8: 4 | B8: 2000 | C8: 110 | D8: 39/09/01 | E8: فضل | F8: 3 | G8: محلات الربوة | H8: من 39/05/15 حتى 39/08/15 المتبقي 3000ريال | J8: 9100
A9: 5 | B9: 5000 | C9: 4210 | D9: 39/08/29 | E9: إبراهيم | F9: 2 | G9: الشرفية | H9: من 39/07/25هـ حتى 39/10/25
A10: 6 | B10: 1100 | C10: 4259 | D10: 39/08/27 | E10: إبراهيم | F10: 23 | G10: بترومين | H10: دفعة
A11: 7 | B11: 3000 | C11: 4260 | D11: 39/08/29 | E11: إبراهيم | F11: 7 | G11: الربوة | H11: دفعة
A12: 8 | B12: 57150 | C12: 108 | D12: 15/05/2018 | E12: إبراهيم | F12: أ _ 2 | G12: مستودع باعباد | H12: المتبقي من إيجار المستودع حتى 39/05/30 (شيك4196 البنك السعودي)
A13: 9 | B13: 2085 | C13: 4289 | D13: 2018-12-05 | E13: عبدالرحمن | F13: 12أ+12ب | G13: محلات الخمرة | H13: شهر 7 لعام 39هـ
A14: 10 | B14: 6255 | C14: 4290 | D14: 2018-12-05 | E14: عبدالرحمن | F14: 13+14+15 | G14: محلات الخمرة | H14: شهر 7 لعام 39هـ
A15: 11 | B15: 2085 | C15: 4291 | D15: 2018-12-05 | E15: عبدالرحمن | F15: 16أ +16ب | G15: محلات الخمرة | H15: شهر 7 لعام 39هـ
A16: 12 | B16: 1500 | C16: 4292 | D16: 13/5/2018 | E16: عبدالرحمن | F16: 20 ب | G16: محلات الخمرة | H16: شهر 8 لعام 39هـ
A17: 13 | B17: 5840 | C17: 4293 | D17: 15/05/2018 | E17: عبدالرحمن | F17: فاطمة الحطامي | G17: المصنع
A18: 14 | B18: 600 | C18: 4230 | D18: 39/08/26 | E18: عبدالملك | F18: 1 | G18: فيلا الشرفية | H18: من 39/07/21 حتى 39/08/21
A19: 15 | B19: 600 | C19: 4231 | D19: 39/08/28 | E19: عبدالملك | G19: فيلا الشرفية | H19: 39/08/12 حتى 39/09/12
A20: 16 | B20: 100 | C20: 4232 | D20: 39/08/27 | E20: عبدالملك | H20: سداد كهرباء
A21: 18 | B21: 300 | C21: 4233 | D21: 39/08/23 | E21: عبدالملك | F21: 11 | G21: المظلوم | H21: دفعة | J21: =SUM(J5:J20) -> 71084
A22: 19 | B22: 800 | C22: 4234 | D22: 39/09/01 | E22: عبدالملك | F22: 7 | G22: المظلوم | H22: 39/08/05هـ حتى 39/09/05 | K22: =B31-J21-L33 -> 0
A23: 17 | B23: 3300 | C23: 4236 | D23: 39/09/01 | E23: عبدالملك | F23: 1 | G23: فيلا الشرفية | H23: دفعة
A24: 20 | J24: الفئات | K24: العدد | L24: المجموع
A25: 21 | J25: 500 | K25: 45 | L25: =J25*K25 -> 22500
A26: 22 | J26: 200 | K26: 0 | L26: 0
A27: 23 | J27: 100 | K27: 14 | L27: 1400
A28: 24 | J28: 50 | K28: 6 | L28: 300
A29: 25 | J29: 20 | K29: 0 | L29: 0
A30: 26 | J30: 10 | K30: 69 | L30: 690
B31: =SUM(B5:B30) -> 96099 | D31: المجموع الكلي | J31: 5 | K31: 23 | L31: 115
J32: 1 | K32: 10 | L32: 10
B33: أمين الصندوق | E33: المحاسب | L33: =SUM(L25:L32) -> 25015

Sheet 5 رمضان 39هـ
A1: اسم المحصل | C1: اليوم | H1: اليوم والتاريخ
G2: 2018-05-22
H3: 39/09/05
A4: م | B4: المبلغ | C4: رقم السند | D4: تاريخ السند | E4: المحصل | F4: الوحدة | G4: العمارة/ المستودع | H4: ملاحظات | J4: المبلغ | K4: البيان
A5: 1 | B5: 550 | C5: 4261 | D5: 39/09/04 | E5: إبراهيم | F5: ع4غ2 ملحق | G5: شبك المطار | H5: شهر 9 لعام 39
A6: 3 | B6: 550 | C6: 4262 | D6: 39/09/04 | E6: إبراهيم | F6: ع4غ3 ملحق | G6: شبك المطار | H6: شهر 9 لعام 39
A7: 3 | B7: 1000 | C7: 4263 | D7: 39/09/04 | E7: إبراهيم | F7: ع4ش4 | G7: شبك المطار | H7: شهر 9 لعام 39
A8: 4 | B8: 700 | C8: 4264 | D8: 39/09/04 | E8: إبراهيم | F8: ع5ش2 | G8: شبك المطار | H8: شهر 8 لعام 39 باقي 300
A9: 5 | B9: 1200 | C9: 4265 | D9: 39/09/04 | E9: إبراهيم | F9: 17 | G9: الربوة | H9: من 39/08/25 حتى 39/09/25
A10: 6
A11: 7
A12: 8
A13: 9
A14: 10
A15: 11
A16: 12
A17: 13
A18: 14
A19: 15
A20: 16
A21: 18 | J21: =SUM(J5:J20) -> 0
A22: 19 | K22: =B31-J21-L33 -> 0
A23: 17
A24: 20 | J24: الفئات | K24: العدد | L24: المجموع
A25: 21 | J25: 500 | K25: 2 | L25: =J25*K25 -> 1000
A26: 22 | J26: 200 | K26: 0 | L26: 0
A27: 23 | J27: 100 | K27: 30 | L27: 3000
A28: 24 | J28: 50 | K28: 0 | L28: 0
A29: 25 | J29: 20 | K29: 0 | L29: 0
A30: 26 | J30: 10 | K30: 0 | L30: 0
B31: =SUM(B5:B30) -> 4000 | D31: المجموع الكلي | J31: 5 | K31: 0 | L31: 0
J32: 1 | K32: 0 | L32: 0
B33: أمين الصندوق | E33: المحاسب | L33: =SUM(L25:L32) -> 4000

Sheet 7 رمضان 39هـ
A1: اسم المحصل | C1: اليوم | H1: اليوم والتاريخ
G2: 2018-05-23
H3: 39/09/07
A4: م | B4: المبلغ | C4: رقم السند | D4: تاريخ السند | E4: المحصل | F4: الوحدة | G4: العمارة/ المستودع | H4: ملاحظات | J4: المبلغ | K4: البيان
A5: 1 | B5: 6250 | C5: 4294 | D5: 39/09/01 | E5: عبدالرحمن | F5: 31+30+29 | G5: محلات الخمرة | H5: شهر 5 لعام 39 | J5: 52000
A6: 3 | B6: 2085 | C6: 4295 | D6: 39/09/04 | E6: عبدالرحمن | F6: 40 | G6: محلات الخمرة | H6: شهر 7 لعام 39
A7: 3 | B7: 495 | C7: 4235 | D7: 39/09/01 | E7: عبدالملك | F7: 2 | G7: المظلوم | H7: شهر 8 لعام 39
A8: 4 | B8: 1000 | C8: 4237 | D8: 39/09/05 | E8: عبدالملك | F8: 4 | G8: المظلوم | H8: من 39/08/05 حتى 39/09/05
A9: 5 | B9: 600 | C9: 4238 | D9: 39/09/05 | E9: عبدالملك | F9: 3 | G9: المظلوم | H9: من 39/08/05 حتى 39/09/05
A10: 6 | B10: 700 | C10: 4239 | D10: 39/09/05 | E10: عبدالملك | F10: 9 | G10: المظلوم | H10: من 39/07/12 حتى 39/08/12
A11: 7 | B11: 900 | C11: 4241 | D11: 39/09/05 | E11: عبدالملك | F11: 8 | G11: المظلوم | H11: دفعة
A12: 8 | B12: 1900 | C12: 4243 | D12: 39/09/05 | E12: عبدالملك | F12: 2 | G12: فيلا الشرفية | H12: شهر 8 لعام 39
A13: 9 | B13: 6666 | C13: 4244 | D13: 39/09/06 | E13: عبدالملك | F13: 3 | G13: الشرفية2 | H13: من 39/09/05 حتى 40/01/05
A14: 10 | B14: 6666 | C14: 4245 | D14: 39/09/06 | E14: عبدالملك | F14: 19 | G14: الشرفية2 | H14: من 39/09/05 حتى 40/01/05
A15: 11 | B15: 4170 | C15: 4296 | D15: 2018-05-21 | E15: عبدالرحمن | F15: 53+52 | G15: محلات الخمرة | H15: شهر 8 لعام 39
A16: 12 | B16: 2085 | C16: 4297 | D16: 2018-05-22 | E16: عبدالرحمن | F16: 49 | G16: محلات الخمرة | H16: شهر 6 لعام 39
A17: 13 | B17: 1000 | C17: 4298 | D17: 2018-05-22 | E17: عبدالرحمن | F17: 47 | G17: محلات الخمرة | H17: شهر 7 لعام 39
A18: 14 | B18: 1000 | C18: 4266 | D18: 39/09/05 | E18: إبراهيم | F18: ع4ش6 | G18: شبك المطار | H18: شهر 9 لعام 39
A19: 15 | B19: 1500 | C19: 4267 | D19: 39/09/05 | E19: إبراهيم | F19: 15 | G19: الربوة | H19: من 39/09/25 حتى 39/08/25
A20: 16 | B20: 1000 | C20: 4268 | D20: 39/09/06 | E20: إبراهيم | F20: ع6ش4 | G20: شبك المطار | H20: شهر 9 لعام 39
A21: 18 | B21: 2100 | C21: 4269 | D21: 39/09/06 | E21: إبراهيم | F21: ع3 ملحق السطح | G21: شبك المطار | H21: من39/09/01 حتى 39/11/30 | J21: =SUM(J5:J20) -> 52000
A22: 19 | B22: 1700 | C22: 4270 | D22: 39/09/06 | E22: إبراهيم | F22: 20 | G22: الربوة | H22: شهر 9 لعام 39 | K22: =B31-J21-L33 -> 2022
A23: 17 | B23: 52000 | C23: 4149 | D23: 39/09/07 | E23: فضل | F23: 15 | G23: مستودع السرورية | H23: من 39/07/01 حتى 39/12/30 تحويل الأهلي في 2018/05/20
A24: 20 | J24: الفئات | K24: العدد | L24: المجموع
A25: 21 | J25: 500 | K25: 44 | L25: =J25*K25 -> 22000
A26: 22 | J26: 200 | K26: 0 | L26: 0
A27: 23 | J27: 100 | K27: 135 | L27: 13500
A28: 24 | J28: 50 | K28: 65 | L28: 3250
A29: 25 | J29: 20 | K29: 0 | L29: 0
A30: 26 | J30: 10 | K30: 104 | L30: 1040
B31: =SUM(B5:B30) -> 93817 | D31: المجموع الكلي | J31: 5 | K31: 1 | L31: 5
J32: 1 | K32: 0 | L32: 0
B33: أمين الصندوق | E33: المحاسب | L33: =SUM(L25:L32) -> 39795

Sheet 8 رمضان 39هـ
A1: اسم المحصل | C1: اليوم | H1: اليوم والتاريخ
G2: 2018-05-24
H3: 39/09/08
A4: م | B4: المبلغ | C4: رقم السند | D4: تاريخ السند | E4: المحصل | F4: الوحدة | G4: العمارة/ المستودع | H4: ملاحظات | J4: المبلغ | K4: البيان
A5: 1 | B5: 1585 | C5: 4299 | D5: 2018-05-23 | E5: عبدالرحمن | F5: 32 | G5: محلات الخمرة | H5: شهر 6 لعام 39 والمتبقي 500 من شهر6
A6: 3 | B6: 4170 | C6: 4300 | D6: 2018-05-23 | E6: عبدالرحمن | F6: 39+38 | G6: محلات الخمرة | H6: شهر 9 لعام 39هـ
A7: 3 | B7: 2085 | C7: 4351 | D7: 2018-05-24 | E7: عبدالرحمن | F7: 10 | G7: محلات الخمرة | H7: شهر 6 لعام 39
A8: 4 | B8: 2085 | C8: 4352 | D8: 2018-05-24 | E8: عبدالرحمن | F8: 42 | G8: محلات الخمرة | H8: شهر 6 لعام 39
A9: 5
A10: 6
A11: 7
A12: 8
A13: 9
A14: 10
A15: 11
A16: 12
A17: 13
A18: 14
A19: 15
A20: 16
A21: 18 | J21: =SUM(J5:J20) -> 0
A22: 19 | K22: =B31-J21-L33 -> 0
A23: 17
A24: 20 | J24: الفئات | K24: العدد | L24: المجموع
A25: 21 | J25: 500 | K25: 10 | L25: =J25*K25 -> 5000
A26: 22 | J26: 200 | K26: 0 | L26: 0
A27: 23 | J27: 100 | K27: 49 | L27: 4900
A28: 24 | J28: 50 | K28: 0 | L28: 0
A29: 25 | J29: 20 | K29: 0 | L29: 0
A30: 26 | J30: 10 | K30: 1 | L30: 10
B31: =SUM(B5:B30) -> 9925 | D31: المجموع الكلي | J31: 5 | K31: 3 | L31: 15
J32: 1 | K32: 0 | L32: 0
B33: أمين الصندوق | E33: المحاسب | L33: =SUM(L25:L32) -> 9925

Sheet 10 رمضان 39هـ
A1: اسم المحصل | C1: اليوم | H1: اليوم والتاريخ
G2: 2018-05-27
H3: 39/09/10
A4: م | B4: المبلغ | C4: رقم السند | D4: تاريخ السند | E4: المحصل | F4: الوحدة | G4: العمارة/ المستودع | H4: ملاحظات | J4: المبلغ | K4: البيان
A5: 1 | B5: 8340 | C5: 4353 | D5: 2018-05-27 | E5: عبدالرحمن | F5: 22+21 | G5: محلات الخمرة | H5: شهر 5+4 لعام 39هـ | J5: 5000
A6: 3 | B6: 3295 | C6: 4354 | D6: 2018-05-27 | E6: عبدالرحمن | F6: 41 | G6: محلات الخمرة | H6: شهر 6 لعام 39هـ
A7: 3 | B7: 4500 | C7: 4242 | D7: 39/09/11 | E7: عبدالملك | F7: 6 | G7: الستين | H7: من 39/0/01 حتى 39/08/30
A8: 4
A9: 5
A10: 6
A11: 7
A12: 8
A13: 9
A14: 10
A15: 11
A16: 12
A17: 13
A18: 14
A19: 15
A20: 16
A21: 18 | J21: =SUM(J5:J20) -> 5000
A22: 19 | K22: =B31-J21-L33 -> -15
A23: 17
A24: 20 | J24: الفئات | K24: العدد | L24: المجموع
A25: 21 | J25: 500 | K25: 10 | L25: =J25*K25 -> 5000
A26: 22 | J26: 200 | K26: 0 | L26: 0
A27: 23 | J27: 100 | K27: 61 | L27: 6100
A28: 24 | J28: 50 | K28: 1 | L28: 50
A29: 25 | J29: 20 | K29: 0 | L29: 0
A30: 26 | J30: 10 | K30: 0 | L30: 0
B31: =SUM(B5:B30) -> 16135 | D31: المجموع الكلي | J31: 5 | K31: 0 | L31: 0
J32: 1 | K32: 0 | L32: 0
B33: أمين الصندوق | E33: المحاسب | L33: =SUM(L25:L32) -> 11150

Sheet 11 رمضان 39هـ
A1: اسم المحصل | C1: اليوم | H1: اليوم والتاريخ
G2: 2018-05-28
H3: 39/09/11
A4: م | B4: المبلغ | C4: رقم السند | D4: تاريخ السند | E4: المحصل | F4: الوحدة | G4: العمارة/ المستودع | H4: ملاحظات | J4: المبلغ | K4: البيان
A5: 1 | B5: 1000 | C5: 4271 | D5: 39/09/07 | E5: إبراهيم | F5: 10 | G5: الربوة | H5: شهر 9 لعام 39
A6: 3 | B6: 1000 | C6: 4272 | D6: 39/09/08 | E6: إبراهيم | F6: 22 | G6: بترومين | H6: شهر 8 لعام 39
A7: 3 | B7: 1100 | C7: 4273 | D7: 39/09/08 | E7: إبراهيم | F7: 42 | G7: بترومين | H7: شهر 9 لعام 39
A8: 4 | B8: 1100 | C8: 4274 | D8: 39/09/08 | E8: إبراهيم | F8: 41 | G8: بترومين | H8: شهر 6 لعام 39
A9: 5 | B9: 1000 | C9: 4275 | D9: 39/09/11 | E9: إبراهيم | F9: ع6ش6 | G9: شبك المطار | H9: شهر 9 لعام 39
A10: 6 | B10: 1000 | C10: 4401 | D10: 39/09/11 | E10: إبراهيم | F10: 28 | G10: الربوة | H10: من 39/09/10 حتى 39/10/10
A11: 7 | B11: 1200 | C11: 4402 | D11: 39/09/11 | E11: إبراهيم | F11: ع5ش8 | G11: شبك المطار | H11: شهر 8 لعام 39
A12: 8 | B12: 1000 | C12: 4403 | D12: 39/09/11 | E12: إبراهيم | F12: ع3ش2 | G12: شبك المطار | H12: شهر 9 لعام 39
A13: 9 | B13: 2200 | C13: 4404 | D13: 39/09/11 | E13: إبراهيم | F13: ع5ش5 | G13: شبك المطار | H13: شهر 9+10 لعام 39 ــ بداية التخفيض
A14: 10 | B14: 1150 | C14: 4405 | D14: 39/09/11 | E14: إبراهيم | F14: ع4ش5 | G14: شبك المطار | H14: شهر 9 لعام 39 + 50 ريال سابقة
A15: 11 | B15: 1500 | C15: 4355 | D15: 2018-05-27 | E15: عبدالرحمن | F15: 19أ | G15: محلات الخمرة | H15: شهر 9 لعام 39
A16: 12 | B16: 4170 | C16: 4356 | D16: 2018-05-27 | E16: عبدالرحمن | F16: 18+17 | G16: محلات الخمرة | H16: شهر 9 لعام
A17: 13 | B17: 4170 | C17: 4357 | D17: 2018-05-27 | E17: عبدالرحمن | F17: 33+32 | G17: محلات الخمرة | H17: شهر 5 لعام 39
A18: 14 | B18: 2085 | C18: 4358 | D18: 2018-05-27 | E18: عبدالرحمن | F18: 40 | G18: محلات الخمرة | H18: شهر 8 لعام 39
A19: 15 | B19: 500 | C19: 4359 | D19: 2018-05-27 | E19: عبدالرحمن | F19: 37 | G19: محلات الخمرة | H19: دفعة
A20: 16 | B20: 1200 | C20: 4240 | D20: 39/09/11 | E20: عبدالملك | F20: 3 | G20: المظلوم | H20: شهر 9 لعام 39
A21: 18 | B21: 10000 | C21: 4246 | D21: 39/09/12 | E21: عبدالملك | F21: 7ـ حوش أ | G21: فيلا الشرفية | H21: دفعة | J21: =SUM(J5:J20) -> 0
A22: 19 | K22: =B31-J21-L33 -> 100
A23: 17
A24: 20 | J24: الفئات | K24: العدد | L24: المجموع
A25: 21 | J25: 500 | K25: 25 | L25: =J25*K25 -> 12500
A26: 22 | J26: 200 | K26: 0 | L26: 0
A27: 23 | J27: 100 | K27: 184 | L27: 18400
A28: 24 | J28: 50 | K28: 83 | L28: 4150
A29: 25 | J29: 20 | K29: 0 | L29: 0
A30: 26 | J30: 10 | K30: 21 | L30: 210
B31: =SUM(B5:B30) -> 35375 | D31: المجموع الكلي | J31: 5 | K31: 0 | L31: 0
J32: 1 | K32: 15 | L32: 15
B33: أمين الصندوق | E33: المحاسب | L33: =SUM(L25:L32) -> 35275

Sheet 12 رمضان 39هـ
A1: اسم المحصل | C1: اليوم | H1: اليوم والتاريخ
G2: 2018-05-27
H3: 39/09/12
A4: م | B4: المبلغ | C4: رقم السند | D4: تاريخ السند | E4: المحصل | F4: الوحدة | G4: العمارة/ المستودع | H4: ملاحظات | J4: المبلغ | K4: البيان
A5: 1
A6: 3
A7: 3
A8: 4
A9: 5
A10: 6
A11: 7
A12: 8
A13: 9
A14: 10
A15: 11
A16: 12
A17: 13
A18: 14
A19: 15
A20: 16
A21: 18 | J21: =SUM(J5:J20) -> 0
A22: 19 | K22: =B31-J21-L33 -> -12500
A23: 17
A24: 20 | J24: الفئات | K24: العدد | L24: المجموع
A25: 21 | J25: 500 | K25: 6 | L25: =J25*K25 -> 3000
A26: 22 | J26: 200 | K26: 0 | L26: 0
A27: 23 | J27: 100 | K27: 60 | L27: 6000
A28: 24 | J28: 50 | K28: 70 | L28: 3500
A29: 25 | J29: 20 | K29: 0 | L29: 0
A30: 26 | J30: 10 | K30: 0 | L30: 0
B31: =SUM(B5:B30) -> 0 | D31: المجموع الكلي | J31: 5 | K31: 0 | L31: 0
J32: 1 | K32: 0 | L32: 0
B33: أمين الصندوق | E33: المحاسب | L33: =SUM(L25:L32) -> 12500

Sheet 13 رمضان 39هـ
A1: اسم المحصل | C1: اليوم | H1: اليوم والتاريخ
G2: 2018-05-29
H3: 39/09/13
A4: م | B4: المبلغ | C4: رقم السند | D4: تاريخ السند | E4: المحصل | F4: الوحدة | G4: العمارة/ المستودع | H4: ملاحظات | J4: المبلغ | K4: البيان
A5: 1 | B5: 50000 | C5: 4376 | D5: 39/09/14 | E5: فضل | F5: 19 | G5: الزبيدي | H5: دفعة من 39/06/01 حتى 39/11/30 المتبقي عليه 20000 | J5: 50000 | K5: تحويل في 2018/05/24 الأهلي ـــ م/ إيراد المتقدمة
A6: 3 | B6: 130000 | C6: 4377 | D6: 39/0915 | E6: فضل | F6: 2 | G6: باعارمة | H6: من 39/03/01 حتى 40/02/30هـ | J6: 130000 | K6: تحويل في 2018/05/29 الأهلي ـــ باعارمة2 خطوط الأفكار
A7: 3 | B7: 20000 | C7: 4378 | D7: 39/09/14 | E7: فضل | F7: 19 | G7: الزبيدي | H7: المتبقي من الإيجار | J7: 20000 | K7: تحويل في 2018/05/27 الأهلي ـــ م/ إيراد المتقدمة
A8: 4 | B8: 85 | C8: 4360 | D8: 2018-05-28 | E8: عبدالرحمن | F8: 40 | G8: محلات الخمرة | H8: متبقية من شهر سابق
A9: 5 | B9: 1500 | C9: 4361 | D9: 2018-05-28 | E9: عبدالرحمن | F9: (أ) 8 | G9: محلات الخمرة | H9: شهر 9 لعام 39
A10: 6 | B10: 4500 | C10: 4362 | D10: 2018-05-28 | E10: عبدالرحمن | F10: 8+6+7 | G10: محلات الخمرة | H10: شهر 6 لعام 39
A11: 7 | B11: 2085 | C11: 4363 | D11: 2018-05-28 | E11: عبدالرحمن | F11: 11 | G11: محلات الخمرة | H11: شهر 9 لعام 39
A12: 8 | B12: 12510 | C12: 4364 | D12: 2018-05-28 | E12: عبدالرحمن | F12: 45+46 | G12: محلات الخمرة | H12: شهر 1+2+3 لعام 39
A13: 9 | B13: 3000 | C13: 4365 | D13: 2018-05-28 | E13: عبدالرحمن | F13: 63 | G13: محلات الخمرة | H13: شهري 3+2 لعام 39
A14: 10 | B14: 2667 | C14: 111 | D14: 39/09/09 | E14: فضل | F14: 2 | G14: المشهري | H14: متبقية من شهر 5 لعام 39
A15: 11
A16: 12
A17: 13
A18: 14
A19: 15
A20: 16
A21: 18 | J21: =SUM(J5:J20) -> 200000
A22: 19 | K22: =B31-J21-L33 -> 0
A23: 17
A24: 20 | J24: الفئات | K24: العدد | L24: المجموع
A25: 21 | J25: 500 | K25: 38 | L25: =J25*K25 -> 19000
A26: 22 | J26: 200 | K26: 0 | L26: 0
A27: 23 | J27: 100 | K27: 64 | L27: 6400
A28: 24 | J28: 50 | K28: 18 | L28: 900
A29: 25 | J29: 20 | K29: 0 | L29: 0
A30: 26 | J30: 10 | K30: 4 | L30: 40
B31: =SUM(B5:B30) -> 226347 | D31: المجموع الكلي | J31: 5 | K31: 1 | L31: 5
J32: 1 | K32: 2 | L32: 2
B33: أمين الصندوق | E33: المحاسب | L33: =SUM(L25:L32) -> 26347

Sheet 14 رمضان 39هـ
A1: اسم المحصل | C1: اليوم | H1: اليوم والتاريخ
G2: 2018-05-30
H3: 39/09/14
A4: م | B4: المبلغ | C4: رقم السند | D4: تاريخ السند | E4: المحصل | F4: الوحدة | G4: العمارة/ المستودع | H4: ملاحظات | J4: المبلغ | K4: البيان
A5: 1 | B5: 1100 | C5: 4406 | D5: 39/09/13 | E5: إبراهيم | F5: ع3ش8 | G5: شبك المطار | H5: شهر 9 لعام 39 | J5: 40000 | K5: شيك رقم 395 وتاريخ39/09/14 (الرشيدي) 18 الزبيدي
A6: 3 | B6: 1000 | C6: 4407 | D6: 39/09/13 | E6: إبراهيم | F6: ع5ش4 | G6: شبك المطار | H6: شهر 9 لعام 39
A7: 3 | B7: 1100 | C7: 4408 | D7: 39/09/13 | E7: إبراهيم | F7: ع2ش8 | G7: شبك المطار | H7: شهر 9 لعام 39
A8: 4 | B8: 1100 | C8: 4409 | D8: 39/09/13 | E8: إبراهيم | F8: ع2ش5 | G8: شبك المطار | H8: شهر 9 لعام 39
A9: 5 | B9: 1000 | C9: 4410 | D9: 39/09/13 | E9: إبراهيم | F9: ع2ش2 | G9: شبك المطار | H9: شهر 9 لعام 39
A10: 6 | B10: 40000 | C10: 4411 | D10: 39/09/13 | E10: إبراهيم | F10: 18 | G10: مستودع الزبيدي | H10: من 39/07/01 حتى 39/12/30
A11: 7 | B11: 19000 | C11: 4212 | D11: 39/09/15 | E11: فضل | F11: 1 | G11: مستودع الصيعري | H11: من 39/07/01 حتى 39/12/30
A12: 8
A13: 9
A14: 10
A15: 11
A16: 12
A17: 13
A18: 14
A19: 15
A20: 16
A21: 18 | J21: =SUM(J5:J20) -> 40000
A22: 19 | K22: =B31-J21-L33 -> 400
A23: 17
A24: 20 | J24: الفئات | K24: العدد | L24: المجموع
A25: 21 | J25: 500 | K25: 33 | L25: =J25*K25 -> 16500
A26: 22 | J26: 200 | K26: 0 | L26: 0
A27: 23 | J27: 100 | K27: 63 | L27: 6300
A28: 24 | J28: 50 | K28: 12 | L28: 600
A29: 25 | J29: 20 | K29: 0 | L29: 0
A30: 26 | J30: 10 | K30: 42 | L30: 420
B31: =SUM(B5:B30) -> 64300 | D31: المجموع الكلي | J31: 5 | K31: 15 | L31: 75
J32: 1 | K32: 5 | L32: 5
B33: أمين الصندوق | E33: المحاسب | L33: =SUM(L25:L32) -> 23900

Sheet 19 رمضان 39هـ
A1: اسم المحصل | C1: اليوم | H1: اليوم والتاريخ
G2: 2018-06-04
H3: 39/09/19
A4: م | B4: المبلغ | C4: رقم السند | D4: تاريخ السند | E4: المحصل | F4: الوحدة | G4: العمارة/ المستودع | H4: ملاحظات | J4: المبلغ | K4: البيان
A5: 1 | B5: 500 | C5: 4366 | D5: 2018-05-30 | E5: عبدالرحمن | F5: 32 | G5: محلات الخمرة | H5: المتبقي من شهر 6 لعام 39 | J5: 31121
A6: 3 | B6: 4170 | C6: 4367 | D6: 2018-05-30 | E6: عبدالرحمن | F6: 9 | G6: محلات الخمرة | H6: شهر 8+7 لعام 39
A7: 3 | B7: 3000 | C7: 4368 | D7: 2018-05-30 | E7: عبدالرحمن | F7: 3+2 | G7: محلات الخمرة | H7: شهر 2 لعام 39
A8: 4 | B8: 3000 | C8: 4369 | D8: 2018-05-30 | E8: عبدالرحمن | F8: 5 | G8: محلات الخمرة | H8: شهر 6 لعام 39
A9: 5 | B9: 1500 | C9: 4370 | D9: 2018-05-30 | E9: عبدالرحمن | F9: 25 (ب) | G9: محلات الخمرة | H9: شهر 9 لعام 39
A10: 6 | B10: 3000 | C10: 4371 | D10: 2018-05-30 | E10: عبدالرحمن | F10: 63 | G10: محلات الخمرة | H10: شهر 5+4 لعام 39
A11: 7 | B11: 4170 | C11: 4372 | D11: 2018-05-30 | E11: عبدالرحمن | F11: 24+23 | G11: محلات الخمرة | H11: شهر 9 لعام 39
A12: 8 | B12: 1281 | C12: 4373 | D12: 2018-05-30 | E12: عبدالرحمن | G12: المصنع | H12: سداد فاتورة 661
A13: 9 | B13: 500 | C13: 4374 | D13: 2018-05-30 | E13: عبدالرحمن | F13: 500 | G13: المصنع | H13: دفعة
A14: 10 | B14: 1100 | C14: 4312 | D14: 39/09/14 | E14: إبراهيم | F14: ع6ش7 | G14: شبك المطار | H14: شهر 9 لعام 39 ــ بدء التخفيض من هذا السند
A15: 11 | B15: 3000 | C15: 4413 | D15: 39/09/14 | E15: إبراهيم | F15: ع3ش3 | G15: شبك المطار | H15: شهر 7+8+9 لعام 39
A16: 12 | B16: 1300 | C16: 4414 | D16: 39/09/15 | E16: إبراهيم | F16: 19 | G16: بترومين | H16: (500)المتبقي من شهر 6 لعام 39 + (800)دفعة من شهر 7 لعام 39
A17: 13 | B17: 8000 | C17: 4426 | D17: 2018-06-04 | E17: عبدالرحمن | F17: 5 | G17: مستودعات السرورية | H17: دفعة
A18: 14 | B18: 10000 | C18: 3905 | D18: 2018-06-04 | E18: عبدالرحمن | F18: 2 | G18: مستودعات السرورية | H18: دفعة
A19: 15 | B19: 3340 | C19: 4428 | D19: 2018-06-04 | E19: عبدالرحمن | F19: 45+55+56+57 | G19: محلات الخمرة | H19: المتبقي من إيجار شهر 4 لعام 39
A20: 16
A21: 18 | J21: =SUM(J5:J20) -> 31121
A22: 19 | K22: =B31-J21-L33 -> 5000
A23: 17
A24: 20 | J24: الفئات | K24: العدد | L24: المجموع
A25: 21 | J25: 500 | K25: 1 | L25: =J25*K25 -> 500
A26: 22 | J26: 200 | K26: 0 | L26: 0
A27: 23 | J27: 100 | K27: 34 | L27: 3400
A28: 24 | J28: 50 | K28: 108 | L28: 5400
A29: 25 | J29: 20 | K29: 0 | L29: 0
A30: 26 | J30: 10 | K30: 231 | L30: 2310
B31: =SUM(B5:B30) -> 47861 | D31: المجموع الكلي | J31: 5 | K31: 26 | L31: 130
J32: 1 | K32: 0 | L32: 0
B33: أمين الصندوق | E33: المحاسب | L33: =SUM(L25:L32) -> 11740

Sheet 20 رمضان 39هـ
A1: اسم المحصل | C1: اليوم | H1: اليوم والتاريخ
G2: 2018-06-05
H3: 39/09/20
A4: م | B4: المبلغ | C4: رقم السند | D4: تاريخ السند | E4: المحصل | F4: الوحدة | G4: العمارة/ المستودع | H4: ملاحظات | J4: المبلغ | K4: البيان
A5: 1 | B5: 3180 | C5: 4379 | D5: 39/09/18 | E5: فضل | F5: 2(أ) حوش | G5: فيلا الشرفية | H5: شهر 9 لعام 39 | J5: 34000 | K5: بافرج
A6: 3 | B6: 34000 | C6: 4380 | D6: 39/09/20 | E6: فضل | G6: بافرج | H6: دفعة من المتبقي عليه تحويل ع الأهلي في 2018/06/03 | J6: 1200 | K6: ماهر الحازمي
A7: 3 | B7: 1200 | C7: 4381 | D7: 39/09/20 | E7: فضل | F7: ع6ش8 | G7: شبك المطار | H7: شهر 9 لعام 39 تحويل ع الأهلي في 2018/05/29 | J7: 25000 | K7: الخليوي ــ الصيعري 8
A8: 4 | B8: 25000 | C8: 4382 | D8: 39/09/20 | E8: فضل | F8: 8 | G8: الصيعري | H8: من 39/08/01حتى40/0130 وباقي عليه 6000 من الإيجار تحويل ع الأهلي في 2018/06/02 | J8: 17500 | K8: المدودي
A9: 5 | B9: 17500 | C9: 4383 | D9: 39/09/20 | E9: فضل | F9: 1+2+3+6+7 | G9: شبك المطار | H9: من 39/09/25 حتى 39/12/25 باقي عليه 5000 تأمين و 2500 مكتب تحويل ع الأهلي في 2018/06/04 | J9: 15000 | K9: العمارون
A10: 6 | B10: 15000 | C10: 94 | D10: 39/09/20 | E10: فضل | F10: العمارون (أ) ـ 4 | G10: باعباد | H10: دفعة من المتبقي عليه شيك رقم 66508601 بنك الجزيرة | J10: 22000 | K10: سقالات القمة العمرانية
A11: 7 | B11: 22000 | C11: 112 | D11: 39/09/20 | E11: فضل | F11: 2+3 | G11: محلات الربوة | H11: شهر 4+5+6+7 لعام 39هـ تحويل ع الراجحي في 2017/07/27
A12: 8
A13: 9
A14: 10
A15: 11
A16: 12
A17: 13 | J17: =SUM(J5:J16) -> 114700
A18: 14 | K18: =B27-J17-L29 -> 0
A19: 15
A20: 16 | J20: الفئات | K20: العدد | L20: المجموع
A21: 17 | J21: 500 | K21: 6 | L21: =J21*K21 -> 3000
A22: 18 | J22: 200 | K22: 0 | L22: 0
A23: 19 | J23: 100 | K23: 1 | L23: 100
A24: 20 | J24: 50 | K24: 0 | L24: 0
A25: 21 | J25: 20 | K25: 0 | L25: 0
A26: 22 | J26: 10 | K26: 8 | L26: 80
B27: =SUM(B5:B26) -> 117880 | D27: المجموع الكلي | J27: 5 | K27: 0 | L27: 0
J28: 1 | K28: 0 | L28: 0
B29: أمين الصندوق | E29: المحاسب | L29: =SUM(L21:L28) -> 3180

Sheet 21 رمضان 39هـ
A1: اسم المحصل | C1: اليوم | H1: اليوم والتاريخ
G2: 2018-06-06
H3: 39/09/21
A4: م | B4: المبلغ | C4: رقم السند | D4: تاريخ السند | E4: المحصل | F4: الوحدة | G4: العمارة/ المستودع | H4: ملاحظات | J4: المبلغ | K4: البيان
A5: 1 | B5: 1500 | C5: 4247 | D5: 39/09/14 | E5: عبدالملك | F5: 13 | G5: المظلوم | H5: من 39/06/20 حتى 39/07/20هـ | J5: 62500 | K5: شيك القناعة رقم 67085631 بنك الجزيرة
A6: 3 | B6: 3250 | C6: 4249 | D6: 39/09/17 | E6: عبدالملك | F6: 12 | G6: الستين | H6: من 39/09/01 حتى 39/11/30هـ
A7: 3 | B7: 62500 | C7: 3238 | D7: 39/09/21 | E7: إسماعيل | F7: 1 | G7: الحريبي | H7: من 39/07/01 حتى 39/12/30هـ ــ شيك رقم 67085631 بنك الجزيرة
A8: 4 | B8: 10425 | C8: 4429 | D8: 2018-06-04 | E8: عبدالرحمن | F8: 12+13+14+15+16 | G8: محلات الخمرة | H8: شهر 8 لعام 39هـ
A9: 5 | B9: 500 | C9: 4430 | D9: 2018-06-05 | E9: عبدالرحمن | F9: 37 | G9: محلات الخمرة | H9: دفعة
A10: 6 | B10: 2000 | C10: 4431 | D10: 2018-06-04 | E10: عبدالرحمن | F10: 0 | G10: العيسائي (سامح) | H10: دفعة
A11: 7 | B11: 5436 | C11: 4432 | D11: 2018-06-05 | E11: عبدالرحمن | F11: 0 | G11: الأوائل | H11: سداد فاتورة 1267 فسح 838
A12: 8 | B12: 4170 | C12: 4433 | D12: 2018-06-07 | E12: عبدالرحمن | F12: 35+36 | G12: محلات الخمرة | H12: شهر 9 لعام 39هـ
A13: 9 | B13: 1500 | C13: 4434 | D13: 2018-06-07 | E13: عبدالرحمن | F13: (ب)19 | G13: محلات الخمرة | H13: شهر 9 لعام 39هـ
A14: 10 | B14: 1500 | C14: 4435 | D14: 2018-06-07 | E14: عبدالرحمن | F14: 25(أ) | G14: محلات الخمرة | H14: شهر 9 لعام 39هـ
A15: 11 | B15: 5500 | C15: 4436 | D15: 2018-06-07 | E15: عبدالرحمن | F15: 0 | G15: الأوائل | H15: سداد فاتورة 2485
A16: 12 | B16: 30000 | C16: 4384 | D16: 39/09/20 | E16: فضل | F16: 4 | G16: المشهري | H16: من 39/06/05 حتى 40/01/05هـ تحويل ع الأهلي في 2018/06/06
A17: 13 | B17: 9000 | C17: 4385 | D17: 39/09/21 | E17: فضل | F17: 9 | G17: الصيعري | H17: من 39/09/25 حتى 40/01/25هـ المتبقي 4333 ريال | J17: =SUM(J5:J16) -> 62500
A18: 14 | K18: =B27-J17-L29 -> 30000
A19: 15
A20: 16 | J20: الفئات | K20: العدد | L20: المجموع
A21: 17 | J21: 500 | K21: 48 | L21: =J21*K21 -> 24000
A22: 18 | J22: 200 | K22: 0 | L22: 0
A23: 19 | J23: 100 | K23: 174 | L23: 17400
A24: 20 | J24: 50 | K24: 67 | L24: 3350
A25: 21 | J25: 20 | K25: 0 | L25: 0
A26: 22 | J26: 10 | K26: 2 | L26: 20
B27: =SUM(B5:B26) -> 137281 | D27: المجموع الكلي | J27: 5 | K27: 2 | L27: 10
J28: 1 | K28: 1 | L28: 1
B29: أمين الصندوق | E29: المحاسب | L29: =SUM(L21:L28) -> 44781

Sheet 22 رمضان 39هـ
A1: اسم المحصل | C1: اليوم | H1: اليوم والتاريخ
G2: 2018-06-07
H3: 39/09/22
A4: م | B4: المبلغ | C4: رقم السند | D4: تاريخ السند | E4: المحصل | F4: الوحدة | G4: العمارة/ المستودع | H4: ملاحظات | J4: المبلغ | K4: البيان
A5: 1 | B5: 1666 | C5: 4248 | D5: 39/09/13 | E5: عبدالملك | F5: 12 | G5: الشرفية | H5: شهر 9 لعام 39هـ
A6: 3
A7: 3
A8: 4
A9: 5
A10: 6
A11: 7
A12: 8
A13: 9
A14: 10
A15: 11
A16: 12
A17: 13 | J17: =SUM(J5:J16) -> 0
A18: 14 | K18: =B27-J17-L29 -> 0
A19: 15
A20: 16 | J20: الفئات | K20: العدد | L20: المجموع
A21: 17 | J21: 500 | K21: 3 | L21: =J21*K21 -> 1500
A22: 18 | J22: 200 | K22: 0 | L22: 0
A23: 19 | J23: 100 | K23: 1 | L23: 100
A24: 20 | J24: 50 | K24: 1 | L24: 50
A25: 21 | J25: 20 | K25: 0 | L25: 0
A26: 22 | J26: 10 | K26: 1 | L26: 10
B27: =SUM(B5:B26) -> 1666 | D27: المجموع الكلي | J27: 5 | K27: 1 | L27: 5
J28: 1 | K28: 1 | L28: 1
B29: أمين الصندوق | E29: المحاسب | L29: =SUM(L21:L28) -> 1666

Sheet 25 رمضان 39هـ
A1: اسم المحصل | C1: اليوم | H1: اليوم والتاريخ
G2: 2018-06-10
H3: 39/09/25
A4: م | B4: المبلغ | C4: رقم السند | D4: تاريخ السند | E4: المحصل | F4: الوحدة | G4: العمارة/ المستودع | H4: ملاحظات
A5: 1 | B5: 1400 | C5: 4213 | D5: 39/09/18 | E5: فضل | F5: 4 | G5: الربوة | H5: شهر 9 لعام 39
A6: 3 | B6: 2200 | C6: 4214 | D6: 39/09/18 | E6: فضل | F6: 105 | G6: الكندرة | H6: شهر 8+7 لعام 39
A7: 3 | B7: 1000 | C7: 4215 | D7: 39/09/19 | E7: فضل | F7: 203 | G7: الكندرة | H7: من 39/09/10 حتى 39/10/10
A8: 4 | B8: 1000 | C8: 4216 | D8: 39/09/20 | E8: فضل | F8: 304 | G8: الكندرة | H8: شهر 9 لعام 39
A9: 5 | B9: 10000 | C9: 4375 | D9: 2018-06-05 | E9: عبدالرحمن | F9: 2 | G9: مستودعات السرورية | H9: دفعة
A10: 6 | B10: 4170 | C10: 4438 | D10: 2018-06-08 | E10: عبدالرحمن | F10: 42 | G10: محلات الخمرة | H10: شهر 8+7 لعام 39
A11: 7 | B11: 1085 | C11: 4439 | D11: 2018-06-08 | E11: عبدالرحمن | F11: 47 | G11: محلات الخمرة | H11: دفعة
A12: 8 | B12: 2085 | C12: 4440 | D12: 2018-06-08 | E12: عبدالرحمن | F12: 51 | G12: محلات الخمرة | H12: شهر 7 لعام 39
A13: 9 | B13: 5500 | C13: 4441 | D13: 2018-06-08 | E13: عبدالرحمن | F13: 0 | G13: الأولائل | H13: سداد فاتورة 2486
A14: 10
A15: 11
A16: 12
A17: 13
A18: 14
A19: 15
A20: 16
A21: 17
A22: 18
A23: 19
A24: 20
A25: 21
A26: 22
B27: =SUM(B5:B26) -> 28440 | D27: المجموع الكلي
B29: أمين الصندوق | E29: المحاسب
E35: =B27-C48-E60 -> 1000
C38: المبلغ | D38: البيان
C39: 27440
C40: 0
C41: 0
C42: 0
C43: 0
C44: 0
C45: 0
C46: 0
C47: 0
C48: =SUM(C39:C47) -> 27440
C51: الفئات | D51: العدد | E51: المجموع
C52: 500 | D52: 0 | E52: =C52*D52 -> 0
C53: 200 | D53: 0 | E53: 0
C54: 100 | D54: 0 | E54: 0
C55: 50 | D55: 0 | E55: 0
C56: 20 | D56: 0 | E56: 0
C57: 10 | D57: 0 | E57: 0
C58: 5 | D58: 0 | E58: 0
C59: 1 | D59: 0 | E59: 0
E60: =SUM(E52:E59) -> 0

Sheet 25 رمضان 39هـ (2)
A1: اسم المحصل | C1: اليوم | H1: اليوم والتاريخ
G2: 2018-06-10
H3: 39/09/25
A4: م | B4: المبلغ | C4: رقم السند | D4: تاريخ السند | E4: المحصل | F4: الوحدة | G4: العمارة/ المستودع | H4: ملاحظات
A5: 1 | B5: 900 | C5: 4301 | D5: 39/09/19 | E5: عبدالملك | F5: 8 | G5: المظلوم | H5: دفعة
A6: 3 | B6: 1000 | C6: 4302 | D6: 39/09/19 | E6: عبدالملك | F6: 5 | G6: المظلوم | H6: من 39/09/05 حتى 39/10/05
A7: 3 | B7: 500 | C7: 4303 | D7: 39/09/19 | E7: عبدالملك | F7: 4 | G7: المظلوم | H7: دفعة
A8: 4 | B8: 700 | C8: 4304 | D8: 39/09/19 | E8: عبدالملك | F8: 9 | G8: المظلوم | H8: من 39/08/12 حتى 39/09/12
A9: 5 | B9: 800 | C9: 4305 | D9: 39/09/23 | E9: عبدالملك | F9: 7 | G9: المظلوم | H9: شهر 9 لعام 39
A10: 6 | B10: 1900 | C10: 4306 | D10: 39/09/21 | E10: عبدالملك | F10: 2 | G10: فيلا الشرفية | H10: شهر 9 لعام 39
A11: 7 | B11: 600 | C11: 4307 | D11: 39/09/23 | E11: عبدالملك | F11: ملحق غ1 | G11: فيلا الشرفية | H11: من 39/08/15 حتى 39/09/15
A12: 8 | B12: 600 | C12: 4308 | D12: 39/09/23 | E12: عبدالملك | F12: ملحق غ2 | G12: فيلا الشرفية | H12: شهر 9 لعام 39
A13: 9 | B13: 600 | C13: 4309 | D13: 39/09/23 | E13: عبدالملك | F13: غرفة خارجية1 | G13: فيلا الشرفية | H13: من 39/08/21 حتى 39/09/21
A14: 10 | B14: 600 | C14: 4310 | D14: 39/09/23 | E14: عبدالملك | F14: غرفة خارجية2 | G14: فيلا الشرفية | H14: من 39/09/12 حتى 39/10/12
A15: 11 | B15: 500 | C15: 4311 | D15: 39/09/23 | E15: عبدالملك | F15: 2 | G15: المظلوم | H15: شهر 9 لعام 39
A16: 25 | B16: 1000 | C16: 4415 | D16: 39/09/19 | E16: إبراهيم | F16: ع2ش1 | G16: شبك المطار | H16: من 39/09/15حتى 39/10/15هـ
A17: 26 | B17: 1100 | C17: 4416 | D17: 39/09/19 | E17: إبراهيم | F17: ع3ش5 | G17: شبك المطار | H17: شهر 9 لعام 39
A18: 12 | B18: 1000 | C18: 4417 | D18: 39/09/19 | E18: إبراهيم | F18: ع4ش1 | G18: شبك المطار | H18: من 39/09/15حتى 39/10/15هـ
A19: 13 | B19: 550 | C19: 4418 | D19: 39/09/21 | E19: إبراهيم | F19: ع4غرفة1 ملحق | G19: شبك المطار | H19: شهر 9 لعام 39
A20: 14 | B20: 550 | C20: 4419 | D20: 39/09/21 | E20: إبراهيم | F20: ع4غرفة4 ملحق | G20: شبك المطار | H20: شهر 9 لعام 39
A21: 15 | B21: 1100 | C21: 4420 | D21: 39/09/21 | E21: إبراهيم | F21: ع4ش8 | G21: شبك المطار | H21: شهر 9 لعام 39
A22: 16 | B22: 2000 | C22: 4421 | D22: 39/09/21 | E22: إبراهيم | F22: 35 | G22: بترومين | H22: دفعة
A23: 17 | B23: 10000 | C23: 4422 | D23: 39/09/22 | E23: إبراهيم | F23: 29+28+27 | G23: الربوة | H23: شهر 8+9 لعام 39هـ
A24: 18 | B24: 6250 | C24: 4442 | D24: 2018-06-09 | E24: عبدالرحمن | F24: 29+28+27 | G24: محلات الخمرة | H24: شهر 9 لعام 39
A25: 19 | B25: 1500 | C25: 4443 | D25: 2018-06-09 | E25: عبدالرحمن | F25: 20 أ | G25: محلات الخمرة | H25: شهر 9 لعام 39
A26: 20 | B26: 1500 | C26: 4444 | D26: 2018-06-09 | E26: عبدالرحمن | F26: 20 ب | G26: محلات الخمرة | H26: شهر 9 لعام 39
A27: 21 | B27: 2085 | C27: 4445 | D27: 2018-06-09 | E27: عبدالرحمن | F27: 41 | G27: محلات الخمرة | H27: شهر 7 لعام 39
A28: 22 | B28: 16550 | C28: 4386 | D28: 39/09/23 | E28: فضل | F28: 5 | G28: المشهري | H28: من 39/09/12 حتى 39/12/12هـ
A29: 23 | B29: 900 | C29: 4217 | D29: 39/09/22 | E29: فضل | F29: 6 | G29: المظلوم | H29: من 39/097/20 حتى 39/08/20
A30: 24 | B30: 808 | C30: 4218 | D30: 39/09/26 | E30: فضل | F30: 15 | G30: الستين | H30: سداد كهرباء
A31: 27
A32: 28
A33: 29
B34: =SUM(B5:B33) -> 55593 | D34: المجموع الكلي
B36: أمين الصندوق | E36: المحاسب
D41: =B34-B45-D66 -> 0
B44: المبلغ | C44: البيان
B45: 55593
B57: الفئات | C57: العدد | D57: المجموع
B58: 500 | C58: 0 | D58: =B58*C58 -> 0
B59: 200 | C59: 0 | D59: 0
B60: 100 | C60: 0 | D60: 0
B61: 50 | C61: 0 | D61: 0
B62: 20 | C62: 0 | D62: 0
B63: 10 | C63: 0 | D63: 0
B64: 5 | C64: 0 | D64: 0
B65: 1 | C65: 0 | D65: 0
D66: =SUM(D58:D65) -> 0

Sheet 26 رمضان 39هـ
A1: اسم المحصل | C1: اليوم | H1: اليوم والتاريخ
G2: 2018-06-11
H3: 39/09/26
A4: م | B4: المبلغ | C4: رقم السند | D4: تاريخ السند | E4: المحصل | F4: الوحدة | G4: العمارة/ المستودع | H4: ملاحظات | J4: المبلغ | K4: البيان
A5: 1 | B5: 2250 | C5: 4446 | D5: 2018-06-10 | E5: عبدالرحمن | F5: 59أ + 58 | G5: محلات الخمرة | H5: شهر 8 لعام 39
A6: 3 | B6: 6250 | C6: 4447 | D6: 2018-06-10 | E6: عبدالرحمن | F6: 31+30+29 | G6: محلات الخمرة | H6: شهر 6 لعام 39
A7: 3 | B7: 10000 | C7: 4448 | D7: 2018-06-11 | E7: عبدالرحمن | F7: 1 | G7: مستوعات السرورية | H7: دفعة
A8: 4 | B8: 35000 | C8: 4449 | D8: 2018-06-11 | E8: عبدالرحمن | F8: 12 | G8: مستوعات السرورية | H8: دفعة
A9: 5 | B9: 4170 | C9: 4450 | D9: 2018-06-11 | E9: عبدالرحمن | F9: 34+33 | G9: محلات الخمرة | H9: شهر 6 لعام 39
A10: 6 | B10: 3000 | C10: 4501 | D10: 2018-06-11 | E10: عبدالرحمن | F10: 0 | G10: الأوائل | H10: دفعة
A11: 7
A12: 8
A13: 9
A14: 10
A15: 11
A16: 12
A17: 13 | J17: =SUM(J5:J16) -> 0
A18: 14 | K18: =B27-J17-L29 -> 0
A19: 15
A20: 16 | J20: الفئات | K20: العدد | L20: المجموع
A21: 17 | J21: 500 | K21: 83 | L21: =J21*K21 -> 41500
A22: 18 | J22: 200 | K22: 0 | L22: 0
A23: 19 | J23: 100 | K23: 191 | L23: 19100
A24: 20 | J24: 50 | K24: 1 | L24: 50
A25: 21 | J25: 20 | K25: 0 | L25: 0
A26: 22 | J26: 10 | K26: 1 | L26: 10
B27: =SUM(B5:B26) -> 60670 | D27: المجموع الكلي | J27: 5 | K27: 2 | L27: 10
J28: 1 | K28: 0 | L28: 0
B29: أمين الصندوق | E29: المحاسب | L29: =SUM(L21:L28) -> 60670

Sheet 27 رمضان 39هـ
A1: اسم المحصل | C1: اليوم | H1: اليوم والتاريخ
G2: 2018-06-12
H3: 39/09/27
A4: م | B4: المبلغ | C4: رقم السند | D4: تاريخ السند | E4: المحصل | F4: الوحدة | G4: العمارة/ المستودع | H4: ملاحظات | J4: المبلغ | K4: البيان
A5: 1 | B5: 20000 | C5: 4502 | D5: 2018-06-12 | E5: عبدالرحمن | F5: 13 | G5: مستودعات السرورية | H5: دفعة
A6: 3 | B6: 1000 | C6: 4476 | D6: 39/09/25 | E6: إبراهيم | F6: 30 | G6: بترومين | H6: شهر 5 لعام 39
A7: 3 | B7: 1000 | C7: 4477 | D7: 39/09/25 | E7: إبراهيم | F7: 8 | G7: بترومين | H7: شهر 8 لعام 39
A8: 4 | B8: 1000 | C8: 4478 | D8: 39/09/26 | E8: إبراهيم | F8: ع3ش6 | G8: شبك المطار | H8: من 39/09/15 حتى 39/10/15
A9: 5 | B9: 1000 | C9: 4479 | D9: 39/09/27 | E9: إبراهيم | F9: ع2ش6 | G9: شبك المطار | H9: شهر 10 لعام 39
A10: 6 | B10: 200 | C10: 4480 | D10: 39/09/26 | E10: إبراهيم | F10: ع2ش6 | G10: شبك المطار | H10: عمولة مكتب
A11: 7 | B11: 1000 | C11: 4481 | D11: 39/09/26 | E11: إبراهيم | F11: ع3ش7 | G11: شبك المطار | H11: شهر 10 لعام 39
A12: 8 | B12: 1000 | C12: 4482 | D12: 39/09/26 | E12: إبراهيم | F12: ع2ش3 | G12: شبك المطار | H12: شهر 10 لعام 39
A13: 9 | B13: 600 | C13: 4483 | D13: 39/09/26 | E13: إبراهيم | F13: ع2ش3 | G13: شبك المطار | H13: عمولة مكتب لشقتين
A14: 10 | B14: 1100 | C14: 4484 | D14: 39/09/26 | E14: إبراهيم | F14: ع6ش5 | G14: شبك المطار | H14: شهر 9 لعام 39
A15: 11
A16: 12
A17: 13 | J17: =SUM(J5:J16) -> 0
A18: 14 | K18: =B27-J17-L29 -> 0
A19: 15
A20: 16 | J20: الفئات | K20: العدد | L20: المجموع
A21: 17 | J21: 500 | K21: 15 | L21: =J21*K21 -> 7500
A22: 18 | J22: 200 | K22: 0 | L22: 0
A23: 19 | J23: 100 | K23: 26 | L23: 2600
A24: 20 | J24: 50 | K24: 55 | L24: 2750
A25: 21 | J25: 20 | K25: 0 | L25: 0
A26: 22 | J26: 10 | K26: 1004 | L26: 10040
B27: =SUM(B5:B26) -> 27900 | D27: المجموع الكلي | J27: 5 | K27: 1002 | L27: 5010
J28: 1 | K28: 0 | L28: 0
B29: أمين الصندوق | E29: المحاسب | L29: =SUM(L21:L28) -> 27900

Sheet ورقة1
A1: التسلسل | B1: المبلغ | C1: رقم السند | D1: تاريخ السند | E1: المحصل | F1: الوحدة | G1: العمارة / المستودع | H1: البيان
B2: 20000 | C2: 4502 | D2: 2018-06-12 | E2: عبدالرحمن | F2: 13 | G2: مستودعات السرورية | H2: دفعة
B3: 1000 | C3: 4476 | D3: 39/09/25 | E3: إبراهيم | F3: 30 | G3: بترومين | H3: شهر 5 لعام 39
B4: 1000 | C4: 4477 | D4: 39/09/25 | E4: إبراهيم | F4: 8 | G4: بترومين | H4: شهر 8 لعام 39
B5: 1000 | C5: 4478 | D5: 39/09/26 | E5: إبراهيم | F5: ع3ش6 | G5: شبك المطار | H5: من 39/09/15 حتى 39/10/15
B6: 1000 | C6: 4479 | D6: 39/09/27 | E6: إبراهيم | F6: ع2ش6 | G6: شبك المطار | H6: شهر 10 لعام 39
B7: 200 | C7: 4480 | D7: 39/09/26 | E7: إبراهيم | F7: ع2ش6 | G7: شبك المطار | H7: عمولة مكتب
B8: 1000 | C8: 4481 | D8: 39/09/26 | E8: إبراهيم | F8: ع3ش7 | G8: شبك المطار | H8: شهر 10 لعام 39
B9: 1000 | C9: 4482 | D9: 39/09/26 | E9: إبراهيم | F9: ع2ش3 | G9: شبك المطار | H9: شهر 10 لعام 39
B10: 600 | C10: 4483 | D10: 39/09/26 | E10: إبراهيم | F10: ع2ش3 | G10: شبك المطار | H10: عمولة مكتب لشقتين
B11: 1100 | C11: 4484 | D11: 39/09/26 | E11: إبراهيم | F11: ع6ش5 | G11: شبك المطار | H11: شهر 9 لعام 39
B12: 2250 | C12: 4446 | D12: 2018-06-10 | E12: عبدالرحمن | F12: 59أ + 58 | G12: محلات الخمرة | H12: شهر 8 لعام 39
B13: 6250 | C13: 4447 | D13: 2018-06-10 | E13: عبدالرحمن | F13: 31+30+29 | G13: محلات الخمرة | H13: شهر 6 لعام 39
B14: 10000 | C14: 4448 | D14: 2018-06-11 | E14: عبدالرحمن | F14: 1 | G14: مستوعات السرورية | H14: دفعة
B15: 35000 | C15: 4449 | D15: 2018-06-11 | E15: عبدالرحمن | F15: 12 | G15: مستوعات السرورية | H15: دفعة
B16: 4170 | C16: 4450 | D16: 2018-06-11 | E16: عبدالرحمن | F16: 34+33 | G16: محلات الخمرة | H16: شهر 6 لعام 39
B17: 3000 | C17: 4501 | D17: 2018-06-11 | E17: عبدالرحمن | F17: 0 | G17: الأوائل | H17: دفعة
B18: 900 | C18: 4301 | D18: 39/09/19 | E18: عبدالملك | F18: 8 | G18: المظلوم | H18: دفعة
B19: 1000 | C19: 4302 | D19: 39/09/19 | E19: عبدالملك | F19: 5 | G19: المظلوم | H19: من 39/09/05 حتى 39/10/05
B20: 500 | C20: 4303 | D20: 39/09/19 | E20: عبدالملك | F20: 4 | G20: المظلوم | H20: دفعة
B21: 700 | C21: 4304 | D21: 39/09/19 | E21: عبدالملك | F21: 9 | G21: المظلوم | H21: من 39/08/12 حتى 39/09/12
B22: 800 | C22: 4305 | D22: 39/09/23 | E22: عبدالملك | F22: 7 | G22: المظلوم | H22: شهر 9 لعام 39
B23: 1900 | C23: 4306 | D23: 39/09/21 | E23: عبدالملك | F23: 2 | G23: فيلا الشرفية | H23: شهر 9 لعام 39
B24: 600 | C24: 4307 | D24: 39/09/23 | E24: عبدالملك | F24: ملحق غ1 | G24: فيلا الشرفية | H24: من 39/08/15 حتى 39/09/15
B25: 600 | C25: 4308 | D25: 39/09/23 | E25: عبدالملك | F25: ملحق غ2 | G25: فيلا الشرفية | H25: شهر 9 لعام 39
B26: 600 | C26: 4309 | D26: 39/09/23 | E26: عبدالملك | F26: غرفة خارجية1 | G26: فيلا الشرفية | H26: من 39/08/21 حتى 39/09/21
B27: 600 | C27: 4310 | D27: 39/09/23 | E27: عبدالملك | F27: غرفة خارجية2 | G27: فيلا الشرفية | H27: من 39/09/12 حتى 39/10/12
B28: 500 | C28: 4311 | D28: 39/09/23 | E28: عبدالملك | F28: 2 | G28: المظلوم | H28: شهر 9 لعام 39
B29: 1000 | C29: 4415 | D29: 39/09/19 | E29: إبراهيم | F29: ع2ش1 | G29: شبك المطار | H29: من 39/09/15حتى 39/10/15هـ
B30: 1100 | C30: 4416 | D30: 39/09/19 | E30: إبراهيم | F30: ع3ش5 | G30: شبك المطار | H30: شهر 9 لعام 39
B31: 1000 | C31: 4417 | D31: 39/09/19 | E31: إبراهيم | F31: ع4ش1 | G31: شبك المطار | H31: من 39/09/15حتى 39/10/15هـ
B32: 550 | C32: 4418 | D32: 39/09/21 | E32: إبراهيم | F32: ع4غرفة1 ملحق | G32: شبك المطار | H32: شهر 9 لعام 39
B33: 550 | C33: 4419 | D33: 39/09/21 | E33: إبراهيم | F33: ع4غرفة4 ملحق | G33: شبك المطار | H33: شهر 9 لعام 39
B34: 1100 | C34: 4420 | D34: 39/09/21 | E34: إبراهيم | F34: ع4ش8 | G34: شبك المطار | H34: شهر 9 لعام 39
B35: 2000 | C35: 4421 | D35: 39/09/21 | E35: إبراهيم | F35: 35 | G35: بترومين | H35: دفعة
B36: 10000 | C36: 4422 | D36: 39/09/22 | E36: إبراهيم | F36: 29+28+27 | G36: الربوة | H36: شهر 8+9 لعام 39هـ
B37: 6250 | C37: 4442 | D37: 2018-06-09 | E37: عبدالرحمن | F37: 29+28+27 | G37: محلات الخمرة | H37: شهر 9 لعام 39
B38: 1500 | C38: 4443 | D38: 2018-06-09 | E38: عبدالرحمن | F38: 20 أ | G38: محلات الخمرة | H38: شهر 9 لعام 39
B39: 1500 | C39: 4444 | D39: 2018-06-09 | E39: عبدالرحمن | F39: 20 ب | G39: محلات الخمرة | H39: شهر 9 لعام 39
B40: 2085 | C40: 4445 | D40: 2018-06-09 | E40: عبدالرحمن | F40: 41 | G40: محلات الخمرة | H40: شهر 7 لعام 39
B41: 16550 | C41: 4386 | D41: 39/09/23 | E41: فضل | F41: 5 | G41: المشهري | H41: من 39/09/12 حتى 39/12/12هـ
B42: 900 | C42: 4217 | D42: 39/09/22 | E42: فضل | F42: 6 | G42: المظلوم | H42: من 39/097/20 حتى 39/08/20
B43: 808 | C43: 4218 | D43: 39/09/26 | E43: فضل | F43: 15 | G43: الستين | H43: سداد كهرباء
B44: 1400 | C44: 4213 | D44: 39/09/18 | E44: فضل | F44: 4 | G44: الربوة | H44: شهر 9 لعام 39
B45: 2200 | C45: 4214 | D45: 39/09/18 | E45: فضل | F45: 105 | G45: الكندرة | H45: شهر 8+7 لعام 39
B46: 1000 | C46: 4215 | D46: 39/09/19 | E46: فضل | F46: 203 | G46: الكندرة | H46: من 39/09/10 حتى 39/10/10
B47: 1000 | C47: 4216 | D47: 39/09/20 | E47: فضل | F47: 304 | G47: الكندرة | H47: شهر 9 لعام 39
B48: 10000 | C48: 4375 | D48: 2018-06-05 | E48: عبدالرحمن | F48: 2 | G48: مستودعات السرورية | H48: دفعة
B49: 4170 | C49: 4438 | D49: 2018-06-08 | E49: عبدالرحمن | F49: 42 | G49: محلات الخمرة | H49: شهر 8+7 لعام 39
B50: 1085 | C50: 4439 | D50: 2018-06-08 | E50: عبدالرحمن | F50: 47 | G50: محلات الخمرة | H50: دفعة
B51: 2085 | C51: 4440 | D51: 2018-06-08 | E51: عبدالرحمن | F51: 51 | G51: محلات الخمرة | H51: شهر 7 لعام 39
B52: 5500 | C52: 4441 | D52: 2018-06-08 | E52: عبدالرحمن | F52: 0 | G52: الأولائل | H52: سداد فاتورة 2486
B53: 1666 | C53: 4248 | D53: 39/09/13 | E53: عبدالملك | F53: 12 | G53: الشرفية | H53: شهر 9 لعام 39هـ
B54: 1500 | C54: 4247 | D54: 39/09/14 | E54: عبدالملك | F54: 13 | G54: المظلوم | H54: من 39/06/20 حتى 39/07/20هـ
B55: 3250 | C55: 4249 | D55: 39/09/17 | E55: عبدالملك | F55: 12 | G55: الستين | H55: من 39/09/01 حتى 39/11/30هـ
B56: 62500 | C56: 3238 | D56: 39/09/21 | E56: إسماعيل | F56: 1 | G56: الحريبي | H56: من 39/07/01 حتى 39/12/30هـ ــ شيك رقم 67085631 بنك الجزيرة
B57: 10425 | C57: 4429 | D57: 2018-06-04 | E57: عبدالرحمن | F57: 12+13+14+15+16 | G57: محلات الخمرة | H57: شهر 8 لعام 39هـ
B58: 500 | C58: 4430 | D58: 2018-06-05 | E58: عبدالرحمن | F58: 37 | G58: محلات الخمرة | H58: دفعة
B59: 2000 | C59: 4431 | D59: 2018-06-04 | E59: عبدالرحمن | F59: 0 | G59: العيسائي (سامح) | H59: دفعة
B60: 5436 | C60: 4432 | D60: 2018-06-05 | E60: عبدالرحمن | F60: 0 | G60: الأوائل | H60: سداد فاتورة 1267 فسح 838
B61: 4170 | C61: 4433 | D61: 2018-06-07 | E61: عبدالرحمن | F61: 35+36 | G61: محلات الخمرة | H61: شهر 9 لعام 39هـ
B62: 1500 | C62: 4434 | D62: 2018-06-07 | E62: عبدالرحمن | F62: (ب)19 | G62: محلات الخمرة | H62: شهر 9 لعام 39هـ
B63: 1500 | C63: 4435 | D63: 2018-06-07 | E63: عبدالرحمن | F63: 25(أ) | G63: محلات الخمرة | H63: شهر 9 لعام 39هـ
B64: 5500 | C64: 4436 | D64: 2018-06-07 | E64: عبدالرحمن | F64: 0 | G64: الأوائل | H64: سداد فاتورة 2485
B65: 30000 | C65: 4384 | D65: 39/09/20 | E65: فضل | F65: 4 | G65: المشهري | H65: من 39/06/05 حتى 40/01/05هـ تحويل ع الأهلي في 2018/06/06
B66: 9000 | C66: 4385 | D66: 39/09/21 | E66: فضل | F66: 9 | G66: الصيعري | H66: من 39/09/25 حتى 40/01/25هـ المتبقي 4333 ريال
B67: 3180 | C67: 4379 | D67: 39/09/18 | E67: فضل | F67: 2(أ) حوش | G67: فيلا الشرفية | H67: شهر 9 لعام 39
B68: 34000 | C68: 4380 | D68: 39/09/20 | E68: فضل | G68: بافرج | H68: دفعة من المتبقي عليه تحويل ع الأهلي في 2018/06/03
B69: 1200 | C69: 4381 | D69: 39/09/20 | E69: فضل | F69: ع6ش8 | G69: شبك المطار | H69: شهر 9 لعام 39 تحويل ع الأهلي في 2018/05/29
B70: 25000 | C70: 4382 | D70: 39/09/20 | E70: فضل | F70: 8 | G70: الصيعري | H70: من 39/08/01حتى40/0130 وباقي عليه 6000 من الإيجار تحويل ع الأهلي في 2018/06/02
B71: 17500 | C71: 4383 | D71: 39/09/20 | E71: فضل | F71: 1+2+3+6+7 | G71: شبك المطار | H71: من 39/09/25 حتى 39/12/25 باقي عليه 5000 تأمين و 2500 مكتب تحويل ع الأهلي في 2018/06/04
B72: 15000 | C72: 94 | D72: 39/09/20 | E72: فضل | F72: العمارون (أ) ـ 4 | G72: باعباد | H72: دفعة من المتبقي عليه شيك رقم 66508601 بنك الجزيرة
B73: 22000 | C73: 112 | D73: 39/09/20 | E73: فضل | F73: 2+3 | G73: محلات الربوة | H73: شهر 4+5+6+7 لعام 39هـ تحويل ع الراجحي في 2017/07/27
B74: 500 | C74: 4366 | D74: 2018-05-30 | E74: عبدالرحمن | F74: 32 | G74: محلات الخمرة | H74: المتبقي من شهر 6 لعام 39
B75: 4170 | C75: 4367 | D75: 2018-05-30 | E75: عبدالرحمن | F75: 9 | G75: محلات الخمرة | H75: شهر 8+7 لعام 39
B76: 3000 | C76: 4368 | D76: 2018-05-30 | E76: عبدالرحمن | F76: 3+2 | G76: محلات الخمرة | H76: شهر 2 لعام 39
B77: 3000 | C77: 4369 | D77: 2018-05-30 | E77: عبدالرحمن | F77: 5 | G77: محلات الخمرة | H77: شهر 6 لعام 39
B78: 1500 | C78: 4370 | D78: 2018-05-30 | E78: عبدالرحمن | F78: 25 (ب) | G78: محلات الخمرة | H78: شهر 9 لعام 39
B79: 3000 | C79: 4371 | D79: 2018-05-30 | E79: عبدالرحمن | F79: 63 | G79: محلات الخمرة | H79: شهر 5+4 لعام 39
B80: 4170 | C80: 4372 | D80: 2018-05-30 | E80: عبدالرحمن | F80: 24+23 | G80: محلات الخمرة | H80: شهر 9 لعام 39
B81: 1281 | C81: 4373 | D81: 2018-05-30 | E81: عبدالرحمن | G81: المصنع | H81: سداد فاتورة 661
B82: 500 | C82: 4374 | D82: 2018-05-30 | E82: عبدالرحمن | F82: 500 | G82: المصنع | H82: دفعة
B83: 1100 | C83: 4312 | D83: 39/09/14 | E83: إبراهيم | F83: ع6ش7 | G83: شبك المطار | H83: شهر 9 لعام 39 ــ بدء التخفيض من هذا السند
B84: 3000 | C84: 4413 | D84: 39/09/14 | E84: إبراهيم | F84: ع3ش3 | G84: شبك المطار | H84: شهر 7+8+9 لعام 39
B85: 1300 | C85: 4414 | D85: 39/09/15 | E85: إبراهيم | F85: 19 | G85: بترومين | H85: (500)المتبقي من شهر 6 لعام 39 + (800)دفعة من شهر 7 لعام 39
B86: 8000 | C86: 4426 | D86: 2018-06-04 | E86: عبدالرحمن | F86: 5 | G86: مستودعات السرورية | H86: دفعة
B87: 10000 | C87: 3905 | D87: 2018-06-04 | E87: عبدالرحمن | F87: 2 | G87: مستودعات السرورية | H87: دفعة
B88: 3340 | C88: 4428 | D88: 2018-06-04 | E88: عبدالرحمن | F88: 45+55+56+57 | G88: محلات الخمرة | H88: المتبقي من إيجار شهر 4 لعام 39

Sheet 21 رمضان 39هـ (2) (hidden)
A1: اسم المحصل | C1: اليوم | H1: اليوم والتاريخ
G2: 2018-06-05
H3: 39/09/20
A4: م | B4: المبلغ | C4: رقم السند | D4: تاريخ السند | E4: المحصل | F4: الوحدة | G4: العمارة/ المستودع | H4: ملاحظات | J4: المبلغ | K4: البيان
A5: 1 | B5: 1500 | C5: 4247 | D5: 39/09/14 | E5: عبدالملك | F5: 13 | G5: المظلوم | H5: من 39/06/20 حتى 39/07/20هـ | J5: 3650
A6: 3 | B6: 1666 | C6: 4248 | D6: 39/09/13 | E6: عبدالملك | F6: 12 | G6: الشرفية | H6: شهر 9 لعام 39هـ
A7: 3 | B7: 3250 | C7: 4249 | D7: 39/09/17 | E7: عبدالملك | F7: 12 | G7: الستين | H7: من 39/09/01 حتى 39/11/30هـ
A8: 4 | B8: 3650 | C8: 4250 | D8: 39/09/18 | E8: عبدالملك | F8: 9 | G8: الشرفية | H8: من 39/03/01 حتى 39/04/30 وله 333 تحويل على الأهلي
A9: 5 | B9: 10425 | C9: 4429 | D9: 2018-06-04 | E9: عبدالرحمن | F9: 12+13+14+15+16 | G9: محلات الخمرة | H9: شهر 8 لعام 39هـ
A10: 6 | B10: 500 | C10: 4430 | D10: 2018-06-05 | E10: عبدالرحمن | F10: 37 | G10: محلات الخمرة | H10: دفعة
A11: 7 | B11: 2000 | C11: 4431 | D11: 2018-06-04 | E11: عبدالرحمن | F11: 0 | G11: العيسائي (سامح) | H11: دفعة
A12: 8 | B12: 5436 | C12: 4432 | D12: 2018-06-05 | E12: عبدالرحمن | F12: 0 | G12: الأوائل | H12: سداد فاتورة 1267 فسح 838
A13: 9
A14: 10
A15: 11
A16: 12
A17: 13 | J17: =SUM(J5:J16) -> 3650
A18: 14 | K18: =B27-J17-L29 -> 0
A19: 15
A20: 16 | J20: الفئات | K20: العدد | L20: المجموع
A21: 17 | J21: 500 | K21: 45 | L21: =J21*K21 -> 22500
A22: 18 | J22: 200 | K22: 0 | L22: 0
A23: 19 | J23: 100 | K23: 15 | L23: 1500
A24: 20 | J24: 50 | K24: 15 | L24: 750
A25: 21 | J25: 20 | K25: 0 | L25: 0
A26: 22 | J26: 10 | K26: 1 | L26: 10
B27: =SUM(B5:B26) -> 28427 | D27: المجموع الكلي | J27: 5 | K27: 3 | L27: 15
J28: 1 | K28: 2 | L28: 2
B29: أمين الصندوق | E29: المحاسب | L29: =SUM(L21:L28) -> 24777

Sheet شيت مجمع
A2: م | B2: المبلغ | C2: رقم السند | D2: تاريخ السند | E2: المحصل | F2: الوحدة | G2: العمارة/ المستودع | H2: ملاحظات
A3: 1 رمضان 39هـ | B3: 950 | C3: 4146 | D3: 39/08/30 | E3: فضل | F3: 6 | G3: المظلوم | H3: شهر 8 لعام1439هـ المتبقي 50ريال من شهر 7
A4: 1 رمضان 39هـ | B4: 600 | C4: 4147 | D4: 39/09/01 | E4: فضل | F4: ع2ش7 ـ غرفة | G4: شبك المطار | H4: شهر 8 لعام1439هـ
A5: 1 رمضان 39هـ | B5: 2834 | C5: 4148 | D5: 39/09/01 | E5: فضل | F5: 26 | G5: الربوة | H5: شهر 6+7 لعام39هـ ـ تحويل في 201/05/15
A6: 1 رمضان 39هـ | B6: 2000 | C6: 110 | D6: 39/09/01 | E6: فضل | F6: 3 | G6: محلات الربوة | H6: من 39/05/15 حتى 39/08/15 المتبقي 3000ريال
A7: 1 رمضان 39هـ | B7: 5000 | C7: 4210 | D7: 39/08/29 | E7: إبراهيم | F7: 2 | G7: الشرفية | H7: من 39/07/25هـ حتى 39/10/25
A8: 1 رمضان 39هـ | B8: 1100 | C8: 4259 | D8: 39/08/27 | E8: إبراهيم | F8: 23 | G8: بترومين | H8: دفعة
A9: 1 رمضان 39هـ | B9: 3000 | C9: 4260 | D9: 39/08/29 | E9: إبراهيم | F9: 7 | G9: الربوة | H9: دفعة
A10: 1 رمضان 39هـ | B10: 57150 | C10: 108 | D10: 15/05/2018 | E10: إبراهيم | F10: أ _ 2 | G10: مستودع باعباد | H10: المتبقي من إيجار المستودع حتى 39/05/30 (شيك4196 البنك السعودي)
A11: 1 رمضان 39هـ | B11: 2085 | C11: 4289 | D11: 43439 | E11: عبدالرحمن | F11: 12أ+12ب | G11: محلات الخمرة | H11: شهر 7 لعام 39هـ
A12: 1 رمضان 39هـ | B12: 6255 | C12: 4290 | D12: 43439 | E12: عبدالرحمن | F12: 13+14+15 | G12: محلات الخمرة | H12: شهر 7 لعام 39هـ
A13: 1 رمضان 39هـ | B13: 2085 | C13: 4291 | D13: 43439 | E13: عبدالرحمن | F13: 16أ +16ب | G13: محلات الخمرة | H13: شهر 7 لعام 39هـ
A14: 1 رمضان 39هـ | B14: 1500 | C14: 4292 | D14: 13/5/2018 | E14: عبدالرحمن | F14: 20 ب | G14: محلات الخمرة | H14: شهر 8 لعام 39هـ
A15: 1 رمضان 39هـ | B15: 5840 | C15: 4293 | D15: 15/05/2018 | E15: عبدالرحمن | F15: فاطمة الحطامي | G15: المصنع
A16: 1 رمضان 39هـ | B16: 600 | C16: 4230 | D16: 39/08/26 | E16: عبدالملك | F16: 1 | G16: فيلا الشرفية | H16: من 39/07/21 حتى 39/08/21
A17: 1 رمضان 39هـ | B17: 600 | C17: 4231 | D17: 39/08/28 | E17: عبدالملك | G17: فيلا الشرفية | H17: 39/08/12 حتى 39/09/12
A18: 1 رمضان 39هـ | B18: 100 | C18: 4232 | D18: 39/08/27 | E18: عبدالملك | H18: سداد كهرباء
A19: 1 رمضان 39هـ | B19: 300 | C19: 4233 | D19: 39/08/23 | E19: عبدالملك | F19: 11 | G19: المظلوم | H19: دفعة
A20: 1 رمضان 39هـ | B20: 800 | C20: 4234 | D20: 39/09/01 | E20: عبدالملك | F20: 7 | G20: المظلوم | H20: 39/08/05هـ حتى 39/09/05
A21: 1 رمضان 39هـ | B21: 3300 | C21: 4236 | D21: 39/09/01 | E21: عبدالملك | F21: 1 | G21: فيلا الشرفية | H21: دفعة
A22: 1 رمضان 39هـ
A23: 1 رمضان 39هـ
A24: 1 رمضان 39هـ
A25: 1 رمضان 39هـ
A26: 1 رمضان 39هـ
A27: 1 رمضان 39هـ
A28: 1 رمضان 39هـ
A29: 1 رمضان 39هـ | B29: 96099 | D29: المجموع الكلي
A30: 1 رمضان 39هـ
A31: 1 رمضان 39هـ | B31: أمين الصندوق | E31: المحاسب
A32: 1 رمضان 39هـ
A33: 5 رمضان 39هـ | B33: 550 | C33: 4261 | D33: 39/09/04 | E33: إبراهيم | F33: ع4غ2 ملحق | G33: شبك المطار | H33: شهر 9 لعام 39
A34: 5 رمضان 39هـ | B34: 550 | C34: 4262 | D34: 39/09/04 | E34: إبراهيم | F34: ع4غ3 ملحق | G34: شبك المطار | H34: شهر 9 لعام 39
A35: 5 رمضان 39هـ | B35: 1000 | C35: 4263 | D35: 39/09/04 | E35: إبراهيم | F35: ع4ش4 | G35: شبك المطار | H35: شهر 9 لعام 39
A36: 5 رمضان 39هـ | B36: 700 | C36: 4264 | D36: 39/09/04 | E36: إبراهيم | F36: ع5ش2 | G36: شبك المطار | H36: شهر 8 لعام 39 باقي 300
A37: 5 رمضان 39هـ | B37: 1200 | C37: 4265 | D37: 39/09/04 | E37: إبراهيم | F37: 17 | G37: الربوة | H37: من 39/08/25 حتى 39/09/25
A38: 5 رمضان 39هـ
A39: 5 رمضان 39هـ
A40: 5 رمضان 39هـ
A41: 5 رمضان 39هـ
A42: 5 رمضان 39هـ
A43: 5 رمضان 39هـ
A44: 5 رمضان 39هـ
A45: 5 رمضان 39هـ
A46: 5 رمضان 39هـ
A47: 5 رمضان 39هـ
A48: 5 رمضان 39هـ
A49: 5 رمضان 39هـ
A50: 5 رمضان 39هـ
A51: 5 رمضان 39هـ
A52: 5 رمضان 39هـ
A53: 5 رمضان 39هـ
A54: 5 رمضان 39هـ
A55: 5 رمضان 39هـ
A56: 5 رمضان 39هـ
A57: 5 رمضان 39هـ
A58: 5 رمضان 39هـ
A59: 5 رمضان 39هـ | B59: 4000 | D59: المجموع الكلي
A60: 5 رمضان 39هـ
A61: 5 رمضان 39هـ | B61: أمين الصندوق | E61: المحاسب
A62: 5 رمضان 39هـ
A63: 7 رمضان 39هـ | B63: 6250 | C63: 4294 | D63: 39/09/01 | E63: عبدالرحمن | F63: 31+30+29 | G63: محلات الخمرة | H63: شهر 5 لعام 39
A64: 7 رمضان 39هـ | B64: 2085 | C64: 4295 | D64: 39/09/04 | E64: عبدالرحمن | F64: 40 | G64: محلات الخمرة | H64: شهر 7 لعام 39
A65: 7 رمضان 39هـ | B65: 495 | C65: 4235 | D65: 39/09/01 | E65: عبدالملك | F65: 2 | G65: المظلوم | H65: شهر 8 لعام 39
A66: 7 رمضان 39هـ | B66: 1000 | C66: 4237 | D66: 39/09/05 | E66: عبدالملك | F66: 4 | G66: المظلوم | H66: من 39/08/05 حتى 39/09/05
A67: 7 رمضان 39هـ | B67: 600 | C67: 4238 | D67: 39/09/05 | E67: عبدالملك | F67: 3 | G67: المظلوم | H67: من 39/08/05 حتى 39/09/05
A68: 7 رمضان 39هـ | B68: 700 | C68: 4239 | D68: 39/09/05 | E68: عبدالملك | F68: 9 | G68: المظلوم | H68: من 39/07/12 حتى 39/08/12
A69: 7 رمضان 39هـ | B69: 900 | C69: 4241 | D69: 39/09/05 | E69: عبدالملك | F69: 8 | G69: المظلوم | H69: دفعة
A70: 7 رمضان 39هـ | B70: 1900 | C70: 4243 | D70: 39/09/05 | E70: عبدالملك | F70: 2 | G70: فيلا الشرفية | H70: شهر 8 لعام 39
A71: 7 رمضان 39هـ | B71: 6666 | C71: 4244 | D71: 39/09/06 | E71: عبدالملك | F71: 3 | G71: الشرفية2 | H71: من 39/09/05 حتى 40/01/05
A72: 7 رمضان 39هـ | B72: 6666 | C72: 4245 | D72: 39/09/06 | E72: عبدالملك | F72: 19 | G72: الشرفية2 | H72: من 39/09/05 حتى 40/01/05
A73: 7 رمضان 39هـ | B73: 4170 | C73: 4296 | D73: 43241 | E73: عبدالرحمن | F73: 53+52 | G73: محلات الخمرة | H73: شهر 8 لعام 39
A74: 7 رمضان 39هـ | B74: 2085 | C74: 4297 | D74: 43242 | E74: عبدالرحمن | F74: 49 | G74: محلات الخمرة | H74: شهر 6 لعام 39
A75: 7 رمضان 39هـ | B75: 1000 | C75: 4298 | D75: 43242 | E75: عبدالرحمن | F75: 47 | G75: محلات الخمرة | H75: شهر 7 لعام 39
A76: 7 رمضان 39هـ | B76: 1000 | C76: 4266 | D76: 39/09/05 | E76: إبراهيم | F76: ع4ش6 | G76: شبك المطار | H76: شهر 9 لعام 39
A77: 7 رمضان 39هـ | B77: 1500 | C77: 4267 | D77: 39/09/05 | E77: إبراهيم | F77: 15 | G77: الربوة | H77: من 39/09/25 حتى 39/08/25
A78: 7 رمضان 39هـ | B78: 1000 | C78: 4268 | D78: 39/09/06 | E78: إبراهيم | F78: ع6ش4 | G78: شبك المطار | H78: شهر 9 لعام 39
A79: 7 رمضان 39هـ | B79: 2100 | C79: 4269 | D79: 39/09/06 | E79: إبراهيم | F79: ع3 ملحق السطح | G79: شبك المطار | H79: من39/09/01 حتى 39/11/30
A80: 7 رمضان 39هـ | B80: 1700 | C80: 4270 | D80: 39/09/06 | E80: إبراهيم | F80: 20 | G80: الربوة | H80: شهر 9 لعام 39
A81: 7 رمضان 39هـ | B81: 52000 | C81: 4149 | D81: 39/09/07 | E81: فضل | F81: 15 | G81: مستودع السرورية | H81: من 39/07/01 حتى 39/12/30 تحويل الأهلي في 2018/05/20
A82: 7 رمضان 39هـ
A83: 7 رمضان 39هـ
A84: 7 رمضان 39هـ
A85: 7 رمضان 39هـ
A86: 7 رمضان 39هـ
A87: 7 رمضان 39هـ
A88: 7 رمضان 39هـ
A89: 7 رمضان 39هـ | B89: 93817 | D89: المجموع الكلي
A90: 7 رمضان 39هـ
A91: 7 رمضان 39هـ | B91: أمين الصندوق | E91: المحاسب
A92: 7 رمضان 39هـ
A93: 8 رمضان 39هـ | B93: 1585 | C93: 4299 | D93: 43243 | E93: عبدالرحمن | F93: 32 | G93: محلات الخمرة | H93: شهر 6 لعام 39 والمتبقي 500 من شهر6
A94: 8 رمضان 39هـ | B94: 4170 | C94: 4300 | D94: 43243 | E94: عبدالرحمن | F94: 39+38 | G94: محلات الخمرة | H94: شهر 9 لعام 39هـ
A95: 8 رمضان 39هـ | B95: 2085 | C95: 4351 | D95: 43244 | E95: عبدالرحمن | F95: 10 | G95: محلات الخمرة | H95: شهر 6 لعام 39
A96: 8 رمضان 39هـ | B96: 2085 | C96: 4352 | D96: 43244 | E96: عبدالرحمن | F96: 42 | G96: محلات الخمرة | H96: شهر 6 لعام 39
A97: 8 رمضان 39هـ
A98: 8 رمضان 39هـ
A99: 8 رمضان 39هـ
A100: 8 رمضان 39هـ
A101: 8 رمضان 39هـ
A102: 8 رمضان 39هـ
A103: 8 رمضان 39هـ
A104: 8 رمضان 39هـ
A105: 8 رمضان 39هـ
A106: 8 رمضان 39هـ
A107: 8 رمضان 39هـ
A108: 8 رمضان 39هـ
A109: 8 رمضان 39هـ
A110: 8 رمضان 39هـ
A111: 8 رمضان 39هـ
A112: 8 رمضان 39هـ
A113: 8 رمضان 39هـ
A114: 8 رمضان 39هـ
A115: 8 رمضان 39هـ
A116: 8 رمضان 39هـ
A117: 8 رمضان 39هـ
A118: 8 رمضان 39هـ
A119: 8 رمضان 39هـ | B119: 9925 | D119: المجموع الكلي
A120: 8 رمضان 39هـ
A121: 8 رمضان 39هـ | B121: أمين الصندوق | E121: المحاسب
A122: 8 رمضان 39هـ
A123: 10 رمضان 39هـ | B123: 8340 | C123: 4353 | D123: 43247 | E123: عبدالرحمن | F123: 22+21 | G123: محلات الخمرة | H123: شهر 5+4 لعام 39هـ
A124: 10 رمضان 39هـ | B124: 3295 | C124: 4354 | D124: 43247 | E124: عبدالرحمن | F124: 41 | G124: محلات الخمرة | H124: شهر 6 لعام 39هـ
A125: 10 رمضان 39هـ | B125: 4500 | C125: 4242 | D125: 39/09/11 | E125: عبدالملك | F125: 6 | G125: الستين | H125: من 39/0/01 حتى 39/08/30
A126: 10 رمضان 39هـ
A127: 10 رمضان 39هـ
A128: 10 رمضان 39هـ
A129: 10 رمضان 39هـ
A130: 10 رمضان 39هـ
A131: 10 رمضان 39هـ
A132: 10 رمضان 39هـ
A133: 10 رمضان 39هـ
A134: 10 رمضان 39هـ
A135: 10 رمضان 39هـ
A136: 10 رمضان 39هـ
A137: 10 رمضان 39هـ
A138: 10 رمضان 39هـ
A139: 10 رمضان 39هـ
A140: 10 رمضان 39هـ
A141: 10 رمضان 39هـ
A142: 10 رمضان 39هـ
A143: 10 رمضان 39هـ
A144: 10 رمضان 39هـ
A145: 10 رمضان 39هـ
A146: 10 رمضان 39هـ
A147: 10 رمضان 39هـ
A148: 10 رمضان 39هـ
A149: 10 رمضان 39هـ | B149: 16135 | D149: المجموع الكلي
A150: 10 رمضان 39هـ
A151: 10 رمضان 39هـ | B151: أمين الصندوق | E151: المحاسب
A152: 10 رمضان 39هـ
A153: 11 رمضان 39هـ | B153: 1000 | C153: 4271 | D153: 39/09/07 | E153: إبراهيم | F153: 10 | G153: الربوة | H153: شهر 9 لعام 39
A154: 11 رمضان 39هـ | B154: 1000 | C154: 4272 | D154: 39/09/08 | E154: إبراهيم | F154: 22 | G154: بترومين | H154: شهر 8 لعام 39
A155: 11 رمضان 39هـ | B155: 1100 | C155: 4273 | D155: 39/09/08 | E155: إبراهيم | F155: 42 | G155: بترومين | H155: شهر 9 لعام 39
A156: 11 رمضان 39هـ | B156: 1100 | C156: 4274 | D156: 39/09/08 | E156: إبراهيم | F156: 41 | G156: بترومين | H156: شهر 6 لعام 39
A157: 11 رمضان 39هـ | B157: 1000 | C157: 4275 | D157: 39/09/11 | E157: إبراهيم | F157: ع6ش6 | G157: شبك المطار | H157: شهر 9 لعام 39
A158: 11 رمضان 39هـ | B158: 1000 | C158: 4401 | D158: 39/09/11 | E158: إبراهيم | F158: 28 | G158: الربوة | H158: من 39/09/10 حتى 39/10/10
A159: 11 رمضان 39هـ | B159: 1200 | C159: 4402 | D159: 39/09/11 | E159: إبراهيم | F159: ع5ش8 | G159: شبك المطار | H159: شهر 8 لعام 39
A160: 11 رمضان 39هـ | B160: 1000 | C160: 4403 | D160: 39/09/11 | E160: إبراهيم | F160: ع3ش2 | G160: شبك المطار | H160: شهر 9 لعام 39
A161: 11 رمضان 39هـ | B161: 2200 | C161: 4404 | D161: 39/09/11 | E161: إبراهيم | F161: ع5ش5 | G161: شبك المطار | H161: شهر 9+10 لعام 39 ــ بداية التخفيض
A162: 11 رمضان 39هـ | B162: 1150 | C162: 4405 | D162: 39/09/11 | E162: إبراهيم | F162: ع4ش5 | G162: شبك المطار | H162: شهر 9 لعام 39 + 50 ريال سابقة
A163: 11 رمضان 39هـ | B163: 1500 | C163: 4355 | D163: 43247 | E163: عبدالرحمن | F163: 19أ | G163: محلات الخمرة | H163: شهر 9 لعام 39
A164: 11 رمضان 39هـ | B164: 4170 | C164: 4356 | D164: 43247 | E164: عبدالرحمن | F164: 18+17 | G164: محلات الخمرة | H164: شهر 9 لعام
A165: 11 رمضان 39هـ | B165: 4170 | C165: 4357 | D165: 43247 | E165: عبدالرحمن | F165: 33+32 | G165: محلات الخمرة | H165: شهر 5 لعام 39
A166: 11 رمضان 39هـ | B166: 2085 | C166: 4358 | D166: 43247 | E166: عبدالرحمن | F166: 40 | G166: محلات الخمرة | H166: شهر 8 لعام 39
A167: 11 رمضان 39هـ | B167: 500 | C167: 4359 | D167: 43247 | E167: عبدالرحمن | F167: 37 | G167: محلات الخمرة | H167: دفعة
A168: 11 رمضان 39هـ | B168: 1200 | C168: 4240 | D168: 39/09/11 | E168: عبدالملك | F168: 3 | G168: المظلوم | H168: شهر 9 لعام 39
A169: 11 رمضان 39هـ | B169: 10000 | C169: 4246 | D169: 39/09/12 | E169: عبدالملك | F169: 7ـ حوش أ | G169: فيلا الشرفية | H169: دفعة
A170: 11 رمضان 39هـ
A171: 11 رمضان 39هـ
A172: 11 رمضان 39هـ
A173: 11 رمضان 39هـ
A174: 11 رمضان 39هـ
A175: 11 رمضان 39هـ
A176: 11 رمضان 39هـ
A177: 11 رمضان 39هـ
A178: 11 رمضان 39هـ
A179: 11 رمضان 39هـ | B179: 35375 | D179: المجموع الكلي
A180: 11 رمضان 39هـ
A181: 11 رمضان 39هـ | B181: أمين الصندوق | E181: المحاسب
A182: 11 رمضان 39هـ
A183: 12 رمضان 39هـ
A184: 12 رمضان 39هـ
A185: 12 رمضان 39هـ
A186: 12 رمضان 39هـ
A187: 12 رمضان 39هـ
A188: 12 رمضان 39هـ
A189: 12 رمضان 39هـ
A190: 12 رمضان 39هـ
A191: 12 رمضان 39هـ
A192: 12 رمضان 39هـ
A193: 12 رمضان 39هـ
A194: 12 رمضان 39هـ
A195: 12 رمضان 39هـ
A196: 12 رمضان 39هـ
A197: 12 رمضان 39هـ
A198: 12 رمضان 39هـ
A199: 12 رمضان 39هـ
A200: 12 رمضان 39هـ
A201: 12 رمضان 39هـ
... 575 more rows

Sheet شيت مجمع (2)
A2: م | B2: المبلغ | C2: رقم السند | D2: تاريخ السند | E2: المحصل | F2: الوحدة | G2: العمارة/ المستودع | H2: ملاحظات
A3: 1 رمضان 39هـ | B3: 950 | C3: 4146 | D3: 39/08/30 | E3: فضل | F3: 6 | G3: المظلوم | H3: شهر 8 لعام1439هـ المتبقي 50ريال من شهر 7
A4: 1 رمضان 39هـ | B4: 600 | C4: 4147 | D4: 39/09/01 | E4: فضل | F4: ع2ش7 ـ غرفة | G4: شبك المطار | H4: شهر 8 لعام1439هـ
A5: 1 رمضان 39هـ | B5: 2834 | C5: 4148 | D5: 39/09/01 | E5: فضل | F5: 26 | G5: الربوة | H5: شهر 6+7 لعام39هـ ـ تحويل في 201/05/15
A6: 1 رمضان 39هـ | B6: 2000 | C6: 110 | D6: 39/09/01 | E6: فضل | F6: 3 | G6: محلات الربوة | H6: من 39/05/15 حتى 39/08/15 المتبقي 3000ريال
A7: 1 رمضان 39هـ | B7: 5000 | C7: 4210 | D7: 39/08/29 | E7: إبراهيم | F7: 2 | G7: الشرفية | H7: من 39/07/25هـ حتى 39/10/25
A8: 1 رمضان 39هـ | B8: 1100 | C8: 4259 | D8: 39/08/27 | E8: إبراهيم | F8: 23 | G8: بترومين | H8: دفعة
A9: 1 رمضان 39هـ | B9: 3000 | C9: 4260 | D9: 39/08/29 | E9: إبراهيم | F9: 7 | G9: الربوة | H9: دفعة
A10: 1 رمضان 39هـ | B10: 57150 | C10: 108 | D10: 15/05/2018 | E10: إبراهيم | F10: أ _ 2 | G10: مستودع باعباد | H10: المتبقي من إيجار المستودع حتى 39/05/30 (شيك4196 البنك السعودي)
A11: 1 رمضان 39هـ | B11: 2085 | C11: 4289 | D11: 43439 | E11: عبدالرحمن | F11: 12أ+12ب | G11: محلات الخمرة | H11: شهر 7 لعام 39هـ
A12: 1 رمضان 39هـ | B12: 6255 | C12: 4290 | D12: 43439 | E12: عبدالرحمن | F12: 13+14+15 | G12: محلات الخمرة | H12: شهر 7 لعام 39هـ
A13: 1 رمضان 39هـ | B13: 2085 | C13: 4291 | D13: 43439 | E13: عبدالرحمن | F13: 16أ +16ب | G13: محلات الخمرة | H13: شهر 7 لعام 39هـ
A14: 1 رمضان 39هـ | B14: 1500 | C14: 4292 | D14: 13/5/2018 | E14: عبدالرحمن | F14: 20 ب | G14: محلات الخمرة | H14: شهر 8 لعام 39هـ
A15: 1 رمضان 39هـ | B15: 5840 | C15: 4293 | D15: 15/05/2018 | E15: عبدالرحمن | F15: فاطمة الحطامي | G15: المصنع
A16: 1 رمضان 39هـ | B16: 600 | C16: 4230 | D16: 39/08/26 | E16: عبدالملك | F16: 1 | G16: فيلا الشرفية | H16: من 39/07/21 حتى 39/08/21
A17: 1 رمضان 39هـ | B17: 600 | C17: 4231 | D17: 39/08/28 | E17: عبدالملك | G17: فيلا الشرفية | H17: 39/08/12 حتى 39/09/12
A18: 1 رمضان 39هـ | B18: 100 | C18: 4232 | D18: 39/08/27 | E18: عبدالملك | H18: سداد كهرباء
A19: 1 رمضان 39هـ | B19: 300 | C19: 4233 | D19: 39/08/23 | E19: عبدالملك | F19: 11 | G19: المظلوم | H19: دفعة
A20: 1 رمضان 39هـ | B20: 800 | C20: 4234 | D20: 39/09/01 | E20: عبدالملك | F20: 7 | G20: المظلوم | H20: 39/08/05هـ حتى 39/09/05
A21: 1 رمضان 39هـ | B21: 3300 | C21: 4236 | D21: 39/09/01 | E21: عبدالملك | F21: 1 | G21: فيلا الشرفية | H21: دفعة
A22: 5 رمضان 39هـ | B22: 550 | C22: 4261 | D22: 39/09/04 | E22: إبراهيم | F22: ع4غ2 ملحق | G22: شبك المطار | H22: شهر 9 لعام 39
A23: 5 رمضان 39هـ | B23: 550 | C23: 4262 | D23: 39/09/04 | E23: إبراهيم | F23: ع4غ3 ملحق | G23: شبك المطار | H23: شهر 9 لعام 39
A24: 5 رمضان 39هـ | B24: 1000 | C24: 4263 | D24: 39/09/04 | E24: إبراهيم | F24: ع4ش4 | G24: شبك المطار | H24: شهر 9 لعام 39
A25: 5 رمضان 39هـ | B25: 700 | C25: 4264 | D25: 39/09/04 | E25: إبراهيم | F25: ع5ش2 | G25: شبك المطار | H25: شهر 8 لعام 39 باقي 300
A26: 5 رمضان 39هـ | B26: 1200 | C26: 4265 | D26: 39/09/04 | E26: إبراهيم | F26: 17 | G26: الربوة | H26: من 39/08/25 حتى 39/09/25
A27: 7 رمضان 39هـ | B27: 6250 | C27: 4294 | D27: 39/09/01 | E27: عبدالرحمن | F27: 31+30+29 | G27: محلات الخمرة | H27: شهر 5 لعام 39
A28: 7 رمضان 39هـ | B28: 2085 | C28: 4295 | D28: 39/09/04 | E28: عبدالرحمن | F28: 40 | G28: محلات الخمرة | H28: شهر 7 لعام 39
A29: 7 رمضان 39هـ | B29: 495 | C29: 4235 | D29: 39/09/01 | E29: عبدالملك | F29: 2 | G29: المظلوم | H29: شهر 8 لعام 39
A30: 7 رمضان 39هـ | B30: 1000 | C30: 4237 | D30: 39/09/05 | E30: عبدالملك | F30: 4 | G30: المظلوم | H30: من 39/08/05 حتى 39/09/05
A31: 7 رمضان 39هـ | B31: 600 | C31: 4238 | D31: 39/09/05 | E31: عبدالملك | F31: 3 | G31: المظلوم | H31: من 39/08/05 حتى 39/09/05
A32: 7 رمضان 39هـ | B32: 700 | C32: 4239 | D32: 39/09/05 | E32: عبدالملك | F32: 9 | G32: المظلوم | H32: من 39/07/12 حتى 39/08/12
A33: 7 رمضان 39هـ | B33: 900 | C33: 4241 | D33: 39/09/05 | E33: عبدالملك | F33: 8 | G33: المظلوم | H33: دفعة
A34: 7 رمضان 39هـ | B34: 1900 | C34: 4243 | D34: 39/09/05 | E34: عبدالملك | F34: 2 | G34: فيلا الشرفية | H34: شهر 8 لعام 39
A35: 7 رمضان 39هـ | B35: 6666 | C35: 4244 | D35: 39/09/06 | E35: عبدالملك | F35: 3 | G35: الشرفية2 | H35: من 39/09/05 حتى 40/01/05
A36: 7 رمضان 39هـ | B36: 6666 | C36: 4245 | D36: 39/09/06 | E36: عبدالملك | F36: 19 | G36: الشرفية2 | H36: من 39/09/05 حتى 40/01/05
A37: 7 رمضان 39هـ | B37: 4170 | C37: 4296 | D37: 43241 | E37: عبدالرحمن | F37: 53+52 | G37: محلات الخمرة | H37: شهر 8 لعام 39
A38: 7 رمضان 39هـ | B38: 2085 | C38: 4297 | D38: 43242 | E38: عبدالرحمن | F38: 49 | G38: محلات الخمرة | H38: شهر 6 لعام 39
A39: 7 رمضان 39هـ | B39: 1000 | C39: 4298 | D39: 43242 | E39: عبدالرحمن | F39: 47 | G39: محلات الخمرة | H39: شهر 7 لعام 39
A40: 7 رمضان 39هـ | B40: 1000 | C40: 4266 | D40: 39/09/05 | E40: إبراهيم | F40: ع4ش6 | G40: شبك المطار | H40: شهر 9 لعام 39
A41: 7 رمضان 39هـ | B41: 1500 | C41: 4267 | D41: 39/09/05 | E41: إبراهيم | F41: 15 | G41: الربوة | H41: من 39/09/25 حتى 39/08/25
A42: 7 رمضان 39هـ | B42: 1000 | C42: 4268 | D42: 39/09/06 | E42: إبراهيم | F42: ع6ش4 | G42: شبك المطار | H42: شهر 9 لعام 39
A43: 7 رمضان 39هـ | B43: 2100 | C43: 4269 | D43: 39/09/06 | E43: إبراهيم | F43: ع3 ملحق السطح | G43: شبك المطار | H43: من39/09/01 حتى 39/11/30
A44: 7 رمضان 39هـ | B44: 1700 | C44: 4270 | D44: 39/09/06 | E44: إبراهيم | F44: 20 | G44: الربوة | H44: شهر 9 لعام 39
A45: 7 رمضان 39هـ | B45: 52000 | C45: 4149 | D45: 39/09/07 | E45: فضل | F45: 15 | G45: مستودع السرورية | H45: من 39/07/01 حتى 39/12/30 تحويل الأهلي في 2018/05/20
A46: 8 رمضان 39هـ | B46: 1585 | C46: 4299 | D46: 43243 | E46: عبدالرحمن | F46: 32 | G46: محلات الخمرة | H46: شهر 6 لعام 39 والمتبقي 500 من شهر6
A47: 8 رمضان 39هـ | B47: 4170 | C47: 4300 | D47: 43243 | E47: عبدالرحمن | F47: 39+38 | G47: محلات الخمرة | H47: شهر 9 لعام 39هـ
A48: 8 رمضان 39هـ | B48: 2085 | C48: 4351 | D48: 43244 | E48: عبدالرحمن | F48: 10 | G48: محلات الخمرة | H48: شهر 6 لعام 39
A49: 8 رمضان 39هـ | B49: 2085 | C49: 4352 | D49: 43244 | E49: عبدالرحمن | F49: 42 | G49: محلات الخمرة | H49: شهر 6 لعام 39
A50: 10 رمضان 39هـ | B50: 8340 | C50: 4353 | D50: 43247 | E50: عبدالرحمن | F50: 22+21 | G50: محلات الخمرة | H50: شهر 5+4 لعام 39هـ
A51: 10 رمضان 39هـ | B51: 3295 | C51: 4354 | D51: 43247 | E51: عبدالرحمن | F51: 41 | G51: محلات الخمرة | H51: شهر 6 لعام 39هـ
A52: 10 رمضان 39هـ | B52: 4500 | C52: 4242 | D52: 39/09/11 | E52: عبدالملك | F52: 6 | G52: الستين | H52: من 39/0/01 حتى 39/08/30
A53: 11 رمضان 39هـ | B53: 1000 | C53: 4271 | D53: 39/09/07 | E53: إبراهيم | F53: 10 | G53: الربوة | H53: شهر 9 لعام 39
A54: 11 رمضان 39هـ | B54: 1000 | C54: 4272 | D54: 39/09/08 | E54: إبراهيم | F54: 22 | G54: بترومين | H54: شهر 8 لعام 39
A55: 11 رمضان 39هـ | B55: 1100 | C55: 4273 | D55: 39/09/08 | E55: إبراهيم | F55: 42 | G55: بترومين | H55: شهر 9 لعام 39
A56: 11 رمضان 39هـ | B56: 1100 | C56: 4274 | D56: 39/09/08 | E56: إبراهيم | F56: 41 | G56: بترومين | H56: شهر 6 لعام 39
A57: 11 رمضان 39هـ | B57: 1000 | C57: 4275 | D57: 39/09/11 | E57: إبراهيم | F57: ع6ش6 | G57: شبك المطار | H57: شهر 9 لعام 39
A58: 11 رمضان 39هـ | B58: 1000 | C58: 4401 | D58: 39/09/11 | E58: إبراهيم | F58: 28 | G58: الربوة | H58: من 39/09/10 حتى 39/10/10
A59: 11 رمضان 39هـ | B59: 1200 | C59: 4402 | D59: 39/09/11 | E59: إبراهيم | F59: ع5ش8 | G59: شبك المطار | H59: شهر 8 لعام 39
A60: 11 رمضان 39هـ | B60: 1000 | C60: 4403 | D60: 39/09/11 | E60: إبراهيم | F60: ع3ش2 | G60: شبك المطار | H60: شهر 9 لعام 39
A61: 11 رمضان 39هـ | B61: 2200 | C61: 4404 | D61: 39/09/11 | E61: إبراهيم | F61: ع5ش5 | G61: شبك المطار | H61: شهر 9+10 لعام 39 ــ بداية التخفيض
A62: 11 رمضان 39هـ | B62: 1150 | C62: 4405 | D62: 39/09/11 | E62: إبراهيم | F62: ع4ش5 | G62: شبك المطار | H62: شهر 9 لعام 39 + 50 ريال سابقة
A63: 11 رمضان 39هـ | B63: 1500 | C63: 4355 | D63: 43247 | E63: عبدالرحمن | F63: 19أ | G63: محلات الخمرة | H63: شهر 9 لعام 39
A64: 11 رمضان 39هـ | B64: 4170 | C64: 4356 | D64: 43247 | E64: عبدالرحمن | F64: 18+17 | G64: محلات الخمرة | H64: شهر 9 لعام
A65: 11 رمضان 39هـ | B65: 4170 | C65: 4357 | D65: 43247 | E65: عبدالرحمن | F65: 33+32 | G65: محلات الخمرة | H65: شهر 5 لعام 39
A66: 11 رمضان 39هـ | B66: 2085 | C66: 4358 | D66: 43247 | E66: عبدالرحمن | F66: 40 | G66: محلات الخمرة | H66: شهر 8 لعام 39
A67: 11 رمضان 39هـ | B67: 500 | C67: 4359 | D67: 43247 | E67: عبدالرحمن | F67: 37 | G67: محلات الخمرة | H67: دفعة
A68: 11 رمضان 39هـ | B68: 1200 | C68: 4240 | D68: 39/09/11 | E68: عبدالملك | F68: 3 | G68: المظلوم | H68: شهر 9 لعام 39
A69: 11 رمضان 39هـ | B69: 10000 | C69: 4246 | D69: 39/09/12 | E69: عبدالملك | F69: 7ـ حوش أ | G69: فيلا الشرفية | H69: دفعة
A70: 13 رمضان 39هـ | B70: 50000 | C70: 4376 | D70: 39/09/14 | E70: فضل | F70: 19 | G70: الزبيدي | H70: دفعة من 39/06/01 حتى 39/11/30 المتبقي عليه 20000
A71: 13 رمضان 39هـ | B71: 130000 | C71: 4377 | D71: 39/0915 | E71: فضل | F71: 2 | G71: باعارمة | H71: من 39/03/01 حتى 40/02/30هـ
A72: 13 رمضان 39هـ | B72: 20000 | C72: 4378 | D72: 39/09/14 | E72: فضل | F72: 19 | G72: الزبيدي | H72: المتبقي من الإيجار
A73: 13 رمضان 39هـ | B73: 85 | C73: 4360 | D73: 43248 | E73: عبدالرحمن | F73: 40 | G73: محلات الخمرة | H73: متبقية من شهر سابق
A74: 13 رمضان 39هـ | B74: 1500 | C74: 4361 | D74: 43248 | E74: عبدالرحمن | F74: (أ) 8 | G74: محلات الخمرة | H74: شهر 9 لعام 39
A75: 13 رمضان 39هـ | B75: 4500 | C75: 4362 | D75: 43248 | E75: عبدالرحمن | F75: 8+6+7 | G75: محلات الخمرة | H75: شهر 6 لعام 39
A76: 13 رمضان 39هـ | B76: 2085 | C76: 4363 | D76: 43248 | E76: عبدالرحمن | F76: 11 | G76: محلات الخمرة | H76: شهر 9 لعام 39
A77: 13 رمضان 39هـ | B77: 12510 | C77: 4364 | D77: 43248 | E77: عبدالرحمن | F77: 45+46 | G77: محلات الخمرة | H77: شهر 1+2+3 لعام 39
A78: 13 رمضان 39هـ | B78: 3000 | C78: 4365 | D78: 43248 | E78: عبدالرحمن | F78: 63 | G78: محلات الخمرة | H78: شهري 3+2 لعام 39
A79: 13 رمضان 39هـ | B79: 2667 | C79: 111 | D79: 39/09/09 | E79: فضل | F79: 2 | G79: المشهري | H79: متبقية من شهر 5 لعام 39
A80: 14 رمضان 39هـ | B80: 1100 | C80: 4406 | D80: 39/09/13 | E80: إبراهيم | F80: ع3ش8 | G80: شبك المطار | H80: شهر 9 لعام 39
A81: 14 رمضان 39هـ | B81: 1000 | C81: 4407 | D81: 39/09/13 | E81: إبراهيم | F81: ع5ش4 | G81: شبك المطار | H81: شهر 9 لعام 39
A82: 14 رمضان 39هـ | B82: 1100 | C82: 4408 | D82: 39/09/13 | E82: إبراهيم | F82: ع2ش8 | G82: شبك المطار | H82: شهر 9 لعام 39
A83: 14 رمضان 39هـ | B83: 1100 | C83: 4409 | D83: 39/09/13 | E83: إبراهيم | F83: ع2ش5 | G83: شبك المطار | H83: شهر 9 لعام 39
A84: 14 رمضان 39هـ | B84: 1000 | C84: 4410 | D84: 39/09/13 | E84: إبراهيم | F84: ع2ش2 | G84: شبك المطار | H84: شهر 9 لعام 39
A85: 14 رمضان 39هـ | B85: 40000 | C85: 4411 | D85: 39/09/13 | E85: إبراهيم | F85: 18 | G85: مستودع الزبيدي | H85: من 39/07/01 حتى 39/12/30
A86: 14 رمضان 39هـ | B86: 19000 | C86: 4212 | D86: 39/09/15 | E86: فضل | F86: 1 | G86: مستودع الصيعري | H86: من 39/07/01 حتى 39/12/30
A87: 19 رمضان 39هـ | B87: 500 | C87: 4366 | D87: 43250 | E87: عبدالرحمن | F87: 32 | G87: محلات الخمرة | H87: المتبقي من شهر 6 لعام 39
A88: 19 رمضان 39هـ | B88: 4170 | C88: 4367 | D88: 43250 | E88: عبدالرحمن | F88: 9 | G88: محلات الخمرة | H88: شهر 8+7 لعام 39
A89: 19 رمضان 39هـ | B89: 3000 | C89: 4368 | D89: 43250 | E89: عبدالرحمن | F89: 3+2 | G89: محلات الخمرة | H89: شهر 2 لعام 39
A90: 19 رمضان 39هـ | B90: 3000 | C90: 4369 | D90: 43250 | E90: عبدالرحمن | F90: 5 | G90: محلات الخمرة | H90: شهر 6 لعام 39
A91: 19 رمضان 39هـ | B91: 1500 | C91: 4370 | D91: 43250 | E91: عبدالرحمن | F91: 25 (ب) | G91: محلات الخمرة | H91: شهر 9 لعام 39
A92: 19 رمضان 39هـ | B92: 3000 | C92: 4371 | D92: 43250 | E92: عبدالرحمن | F92: 63 | G92: محلات الخمرة | H92: شهر 5+4 لعام 39
A93: 19 رمضان 39هـ | B93: 4170 | C93: 4372 | D93: 43250 | E93: عبدالرحمن | F93: 24+23 | G93: محلات الخمرة | H93: شهر 9 لعام 39
A94: 19 رمضان 39هـ | B94: 1281 | C94: 4373 | D94: 43250 | E94: عبدالرحمن | G94: المصنع | H94: سداد فاتورة 661
A95: 19 رمضان 39هـ | B95: 500 | C95: 4374 | D95: 43250 | E95: عبدالرحمن | F95: 500 | G95: المصنع | H95: دفعة
A96: 19 رمضان 39هـ | B96: 1100 | C96: 4312 | D96: 39/09/14 | E96: إبراهيم | F96: ع6ش7 | G96: شبك المطار | H96: شهر 9 لعام 39 ــ بدء التخفيض من هذا السند
A97: 19 رمضان 39هـ | B97: 3000 | C97: 4413 | D97: 39/09/14 | E97: إبراهيم | F97: ع3ش3 | G97: شبك المطار | H97: شهر 7+8+9 لعام 39
A98: 19 رمضان 39هـ | B98: 1300 | C98: 4414 | D98: 39/09/15 | E98: إبراهيم | F98: 19 | G98: بترومين | H98: (500)المتبقي من شهر 6 لعام 39 + (800)دفعة من شهر 7 لعام 39
A99: 19 رمضان 39هـ | B99: 8000 | C99: 4426 | D99: 43255 | E99: عبدالرحمن | F99: 5 | G99: مستودعات السرورية | H99: دفعة
A100: 19 رمضان 39هـ | B100: 10000 | C100: 3905 | D100: 43255 | E100: عبدالرحمن | F100: 2 | G100: مستودعات السرورية | H100: دفعة
A101: 19 رمضان 39هـ | B101: 3340 | C101: 4428 | D101: 43255 | E101: عبدالرحمن | F101: 45+55+56+57 | G101: محلات الخمرة | H101: المتبقي من إيجار شهر 4 لعام 39
A102: 20 رمضان 39هـ | B102: 3180 | C102: 4379 | D102: 39/09/18 | E102: فضل | F102: 2(أ) حوش | G102: فيلا الشرفية | H102: شهر 9 لعام 39
A103: 20 رمضان 39هـ | B103: 34000 | C103: 4380 | D103: 39/09/20 | E103: فضل | G103: بافرج | H103: دفعة من المتبقي عليه تحويل ع الأهلي في 2018/06/03
A104: 20 رمضان 39هـ | B104: 1200 | C104: 4381 | D104: 39/09/20 | E104: فضل | F104: ع6ش8 | G104: شبك المطار | H104: شهر 9 لعام 39 تحويل ع الأهلي في 2018/05/29
A105: 20 رمضان 39هـ | B105: 25000 | C105: 4382 | D105: 39/09/20 | E105: فضل | F105: 8 | G105: الصيعري | H105: من 39/08/01حتى40/0130 وباقي عليه 6000 من الإيجار تحويل ع الأهلي في 2018/06/02
A106: 20 رمضان 39هـ | B106: 17500 | C106: 4383 | D106: 39/09/20 | E106: فضل | F106: 1+2+3+6+7 | G106: شبك المطار | H106: من 39/09/25 حتى 39/12/25 باقي عليه 5000 تأمين و 2500 مكتب تحويل ع الأهلي في 2018/06/04
A107: 20 رمضان 39هـ | B107: 15000 | C107: 94 | D107: 39/09/20 | E107: فضل | F107: العمارون (أ) ـ 4 | G107: باعباد | H107: دفعة من المتبقي عليه شيك رقم 66508601 بنك الجزيرة
A108: 20 رمضان 39هـ | B108: 22000 | C108: 112 | D108: 39/09/20 | E108: فضل | F108: 2+3 | G108: محلات الربوة | H108: شهر 4+5+6+7 لعام 39هـ تحويل ع الراجحي في 2017/07/27
A109: 21 رمضان 39هـ | B109: 1500 | C109: 4247 | D109: 39/09/14 | E109: عبدالملك | F109: 13 | G109: المظلوم | H109: من 39/06/20 حتى 39/07/20هـ
A110: 21 رمضان 39هـ | B110: 3250 | C110: 4249 | D110: 39/09/17 | E110: عبدالملك | F110: 12 | G110: الستين | H110: من 39/09/01 حتى 39/11/30هـ
A111: 21 رمضان 39هـ | B111: 62500 | C111: 3238 | D111: 39/09/21 | E111: إسماعيل | F111: 1 | G111: الحريبي | H111: من 39/07/01 حتى 39/12/30هـ ــ شيك رقم 67085631 بنك الجزيرة
A112: 21 رمضان 39هـ | B112: 10425 | C112: 4429 | D112: 43255 | E112: عبدالرحمن | F112: 12+13+14+15+16 | G112: محلات الخمرة | H112: شهر 8 لعام 39هـ
A113: 21 رمضان 39هـ | B113: 500 | C113: 4430 | D113: 43256 | E113: عبدالرحمن | F113: 37 | G113: محلات الخمرة | H113: دفعة
A114: 21 رمضان 39هـ | B114: 2000 | C114: 4431 | D114: 43255 | E114: عبدالرحمن | F114: 0 | G114: العيسائي (سامح) | H114: دفعة
A115: 21 رمضان 39هـ | B115: 5436 | C115: 4432 | D115: 43256 | E115: عبدالرحمن | F115: 0 | G115: الأوائل | H115: سداد فاتورة 1267 فسح 838
A116: 21 رمضان 39هـ | B116: 4170 | C116: 4433 | D116: 43258 | E116: عبدالرحمن | F116: 35+36 | G116: محلات الخمرة | H116: شهر 9 لعام 39هـ
A117: 21 رمضان 39هـ | B117: 1500 | C117: 4434 | D117: 43258 | E117: عبدالرحمن | F117: (ب)19 | G117: محلات الخمرة | H117: شهر 9 لعام 39هـ
A118: 21 رمضان 39هـ | B118: 1500 | C118: 4435 | D118: 43258 | E118: عبدالرحمن | F118: 25(أ) | G118: محلات الخمرة | H118: شهر 9 لعام 39هـ
A119: 21 رمضان 39هـ | B119: 5500 | C119: 4436 | D119: 43258 | E119: عبدالرحمن | F119: 0 | G119: الأوائل | H119: سداد فاتورة 2485
A120: 21 رمضان 39هـ | B120: 30000 | C120: 4384 | D120: 39/09/20 | E120: فضل | F120: 4 | G120: المشهري | H120: من 39/06/05 حتى 40/01/05هـ تحويل ع الأهلي في 2018/06/06
A121: 21 رمضان 39هـ | B121: 9000 | C121: 4385 | D121: 39/09/21 | E121: فضل | F121: 9 | G121: الصيعري | H121: من 39/09/25 حتى 40/01/25هـ المتبقي 4333 ريال
A122: 22 رمضان 39هـ | B122: 1666 | C122: 4248 | D122: 39/09/13 | E122: عبدالملك | F122: 12 | G122: الشرفية | H122: شهر 9 لعام 39هـ
A123: 25 رمضان 39هـ | B123: 1400 | C123: 4213 | D123: 39/09/18 | E123: فضل | F123: 4 | G123: الربوة | H123: شهر 9 لعام 39
A124: 25 رمضان 39هـ | B124: 2200 | C124: 4214 | D124: 39/09/18 | E124: فضل | F124: 105 | G124: الكندرة | H124: شهر 8+7 لعام 39
A125: 25 رمضان 39هـ | B125: 1000 | C125: 4215 | D125: 39/09/19 | E125: فضل | F125: 203 | G125: الكندرة | H125: من 39/09/10 حتى 39/10/10
A126: 25 رمضان 39هـ | B126: 1000 | C126: 4216 | D126: 39/09/20 | E126: فضل | F126: 304 | G126: الكندرة | H126: شهر 9 لعام 39
A127: 25 رمضان 39هـ | B127: 10000 | C127: 4375 | D127: 43256 | E127: عبدالرحمن | F127: 2 | G127: مستودعات السرورية | H127: دفعة
A128: 25 رمضان 39هـ | B128: 4170 | C128: 4438 | D128: 43259 | E128: عبدالرحمن | F128: 42 | G128: محلات الخمرة | H128: شهر 8+7 لعام 39
A129: 25 رمضان 39هـ | B129: 1085 | C129: 4439 | D129: 43259 | E129: عبدالرحمن | F129: 47 | G129: محلات الخمرة | H129: دفعة
A130: 25 رمضان 39هـ | B130: 2085 | C130: 4440 | D130: 43259 | E130: عبدالرحمن | F130: 51 | G130: محلات الخمرة | H130: شهر 7 لعام 39
A131: 25 رمضان 39هـ | B131: 5500 | C131: 4441 | D131: 43259 | E131: عبدالرحمن | F131: 0 | G131: الأولائل | H131: سداد فاتورة 2486
A132: 26 رمضان 39هـ | B132: 2250 | C132: 4446 | D132: 43261 | E132: عبدالرحمن | F132: 59أ + 58 | G132: محلات الخمرة | H132: شهر 8 لعام 39
A133: 26 رمضان 39هـ | B133: 6250 | C133: 4447 | D133: 43261 | E133: عبدالرحمن | F133: 31+30+29 | G133: محلات الخمرة | H133: شهر 6 لعام 39
A134: 26 رمضان 39هـ | B134: 10000 | C134: 4448 | D134: 43262 | E134: عبدالرحمن | F134: 1 | G134: مستوعات السرورية | H134: دفعة
A135: 26 رمضان 39هـ | B135: 35000 | C135: 4449 | D135: 43262 | E135: عبدالرحمن | F135: 12 | G135: مستوعات السرورية | H135: دفعة
A136: 26 رمضان 39هـ | B136: 4170 | C136: 4450 | D136: 43262 | E136: عبدالرحمن | F136: 34+33 | G136: محلات الخمرة | H136: شهر 6 لعام 39
A137: 26 رمضان 39هـ | B137: 3000 | C137: 4501 | D137: 43262 | E137: عبدالرحمن | F137: 0 | G137: الأوائل | H137: دفعة
A138: 27 رمضان 39هـ | B138: 20000 | C138: 4502 | D138: 43263 | E138: عبدالرحمن | F138: 13 | G138: مستودعات السرورية | H138: دفعة
A139: 27 رمضان 39هـ | B139: 1000 | C139: 4476 | D139: 39/09/25 | E139: إبراهيم | F139: 30 | G139: بترومين | H139: شهر 5 لعام 39
A140: 27 رمضان 39هـ | B140: 1000 | C140: 4477 | D140: 39/09/25 | E140: إبراهيم | F140: 8 | G140: بترومين | H140: شهر 8 لعام 39
A141: 27 رمضان 39هـ | B141: 1000 | C141: 4478 | D141: 39/09/26 | E141: إبراهيم | F141: ع3ش6 | G141: شبك المطار | H141: من 39/09/15 حتى 39/10/15
A142: 27 رمضان 39هـ | B142: 1000 | C142: 4479 | D142: 39/09/27 | E142: إبراهيم | F142: ع2ش6 | G142: شبك المطار | H142: شهر 10 لعام 39
A143: 27 رمضان 39هـ | B143: 200 | C143: 4480 | D143: 39/09/26 | E143: إبراهيم | F143: ع2ش6 | G143: شبك المطار | H143: عمولة مكتب
A144: 27 رمضان 39هـ | B144: 1000 | C144: 4481 | D144: 39/09/26 | E144: إبراهيم | F144: ع3ش7 | G144: شبك المطار | H144: شهر 10 لعام 39
A145: 27 رمضان 39هـ | B145: 1000 | C145: 4482 | D145: 39/09/26 | E145: إبراهيم | F145: ع2ش3 | G145: شبك المطار | H145: شهر 10 لعام 39
A146: 27 رمضان 39هـ | B146: 600 | C146: 4483 | D146: 39/09/26 | E146: إبراهيم | F146: ع2ش3 | G146: شبك المطار | H146: عمولة مكتب لشقتين
A147: 27 رمضان 39هـ | B147: 1100 | C147: 4484 | D147: 39/09/26 | E147: إبراهيم | F147: ع6ش5 | G147: شبك المطار | H147: شهر 9 لعام 39
